Workbook

Sheet Inicio
A2: ¡Hola! Gracias por sumarte a generar un repositorio de iniciativas que aplican estrategias o medidas de economía circular. Juntas y juntos aceleraremos la transición hacia una economía circular (EC) de nuestro país. Antes de iniciar el llenado, por favor, lee estas breves indicaciones:
A3: *El responsable de llenar la ficha deberá ingresar la información en las celdas resaltadas en gris. Asimismo, visualizará celdas que contienen listas despleglables que, al seleccionar un elemento, se llenará automáticamente. *Se deberá hacer clic en la celda para poder visualizar si es desplegable o no. *El formato de este documento es FIJO y no debe modificarse. *En caso que, su empresa implemente más de una iniciativa de EC, se le pide completar una nueva ficha. El llenado de la calculadora corresponde a su empresa en global, en ese sentido, el resultado de ese formato aplica para sus diferentes iniciativas. *Si tienes dudas respecto al llenado del formato puedes encontrar instrucciones detalladas en la hoja "instrucciones de la ficha". Si aún continúas con dudas, por favor, comunícate con Shirley Tito al correo shti@niras.de

Sheet FICHA DE HISTORIAS
B2: FICHA DE HISTORIAS QUE APLICAN ESTRATEGIAS DE ECONOMÍA CIRCULAR (EC)
B3: Completar la información, según la iniciativa de EC que su empresa ha implementado. Los datos a completar deben estar relacionados a la línea de producción, proceso productivo y/o al producto terminado, es decir, dónde se aplicó la iniciativa específicamente. Por ejemplo: si la iniciativa se encuentra relacionada a "recirculación de efluentes", completar, principalmente, la información de las variables: "consumo de agua", "% agua residual recirculada" y "costo anual de agua", en caso que, la iniciativa repercuta además en otra variable (consumo anual de electricidad, consumo anual de combustible, etc.) deberá consignar dicha información.
B5: DATOS GENERALES
D6: Elegir las opciones de las listas desplegables
B7: Nº RUC/ RUS:
B8: Razón social/Nombre comercial:
B9: Representante legal/gerente general:
B10: Género del/la representante legal/gerente general: | D10: Femenino
B11: Sector económico al que pertenece su actividad económica: | D11: Por ejemplo: industria manufacturera, agroindustria, minería, pesca, hidrocarburos, construcción, comercio, otros.
B12: De ser una actividad de la industria manufacturera, grupo al que pertenece: | D12: Fabricación de muebles, reparación e instalación de maquinaria y/o equipos y otras industrias manufactureras
B13: Especifique su actividad económica: | D13: Por ejemplo: Elaboración de vinos
B14: Tamaño empresarial: | D14: Ventas anules entre 8,415,000 - 11,385,000 (Mediana empresa)
B15: Datos de la persona que completa la ficha: | C15: Nombres y Apellidos:
C16: Cargo:
C17: Correo electrónico:
C18: Teléfono:
B20: DATOS DE LA INICIATIVA
B22: Nombre del iniciativa:
B23: Descripción de la iniciativa:
B24: Temáticas de circularidad, relacionadas a las estrategias de EC: | D24: Segregar
B25: Estado: | D25: En construcción
B26: Fecha de inicio de la iniciativa:
B27: Tiempo de implementación:
B28: Lugar donde se implementa la iniciativa: | C28: Departamento:
C29: Provincia:
C30: Distrito:
C31: Dirección:
B32: Inversión:
B33: Fuente financiera: | C33: Propio
C34: Ajeno | D34: Ejemplo: Otras fuentes de financiamiento (PROINNOVATE, PROCIENCIA-CONCYTEC, ETC.)
B36: IMPACTOS/BENEFICIOS
B37: Completar la información de las variables, según la iniciativa de EC que su empresa ha implementado. Por ejemplo: si la iniciativa se encuentra relacionada a "recirculación de efluentes", completar, principalmente, la información de las variables: "consumo de agua", "% agua residual recirculada" y "costo anual de agua", en caso que, la iniciativa repercuta además en otra variable (consumo anual de electricidad, consumo anual de combustible, etc.) deberá consignar dicha información.
B38: Cuantificacion de beneficios
B39: AMBIENTALES | D39: Antes de la Iniciativa | H39: Despues de la Iniciativa
D40: Variable | F40: Unidad | G40: Valor | H40: Variable | J40: Unidad | K40: Valor
D41: Consumo anual de agua | F41: m3 | G41: 100 | H41: Consumo anual de agua | J41: =F41 -> m3 | K41: 90
D42: Consumo anual de electricidad | F42: kWh | G42: 1000 | H42: Consumo anual de electricidad | J42: kWh | K42: 750
D43: Consumo anual de combustible (petróleo) | F43: galones | G43: 1000 | H43: Consumo anual de combustible (petróleo) | J43: galones | K43: 900
D44: Consumo anual de combustible (diésel) | F44: galones | G44: 5 | H44: Consumo anual de combustible (diésel) | J44: galones | K44: 4
D45: Consumo anual de combustible (gasolina) | F45: galones | G45: 8 | H45: Consumo anual de combustible (gasolina) | J45: galones | K45: 3
D46: Consumo anual de combustible (gas natural) | F46: m3 | G46: 200 | H46: Consumo anual de combustible (gas natural) | J46: m3 | K46: 150
D47: Consumo anual de combustible (GLP) | F47: kg | G47: 20 | H47: Consumo anual de combustible (GLP) | J47: kg | K47: 10
D48: Generacion de residuos | F48: T | G48: 5 | H48: Generacion de residuos | J48: T | K48: 2.5
D49: % de agua residual recirculada
D50: % mermas, subproductos u otros de similar naturaleza aprovechado.
D51: % de energía renovable
D52: Otros (Ej. % materia prima reducida, % material reciclado utilizado, etc.)
B53: ECONÓMICOS | D53: Costo anual de agua | F53: Soles | G53: 300 | H53: Costo anual de agua | J53: =F53 -> Soles | K53: 270
D54: Costo anual de electricidad | F54: Soles | G54: 2500 | H54: Costo anual de electricidad | J54: =F54 -> Soles | K54: 2000
D55: Costo anual de combustible (total) | F55: Soles | H55: Costo anual de combustible (total) | J55: =F55 -> Soles
D56: Costo anual de disposición final de rrss | F56: Soles | G56: 1000 | H56: Costo anual de dispocición final de rrss | J56: =F56 -> Soles | K56: 500
D57: Otros (Ej. venta total, productividad, etc.)
B58: Resultados cualitativos
B59: AMBIENTALES
B64: ECONÓMICOS
B69: SOCIALES
B74: RESULTADOS (cálculos automaticos)
B75: Indicadores | D75: Cantidad | E75: unidades
B76: Reducción del consumo de agua | D76: =(G41-K41) -> 10 | E76: =F41 -> m3 | F76: Porcentaje de reduccion de consumo de agua | J76: =D76/G41 -> 0.1
B77: Ahorro en el consumo de agua | D77: =G53-K53 -> 30 | E77: =F53 -> Soles
B78: Reducción del consumo de electricidad | D78: =(G42-K42) -> 250 | E78: =F42 -> kWh | F78: Porcentaje de reduccion de consumo de electricidad | J78: =D78/G42 -> 0.25
B79: Ahorro en el consumo electrico | D79: =G54-K54 -> 500 | E79: =F54 -> Soles
B80: Reducción consumo de combustible | D80: =SUM((G43-K43)*D98,(G44-K44)*(1-D94)*D99,(G45-K45)*(1-D95)*D100,(G46-K46)*D101,(G47-K47)*D102) -> 0.01807009733 | E80: TJ | F80: Porcentaje de reduccion de consumo de combustible | J80: =D80/((G43*D98)+(G44*D99)+(G45*D100)+(G46*D101)+(G47*D102)) -> 0.1125983069
B81: Ahorro en el consumo de combustible | D81: =G55-K55 -> 0 | E81: Soles
B82: Reducción en la generación de residuos | D82: =(G48-K48) -> 2.5 | E82: T | F82: Porcentaje de reducción en la generación de residuos | J82: =D82/G48 -> 0.5
B83: Reducción en el costo por disposición final de residuos | D83: =(G56-K56) -> 500 | E83: Soles | F83: Porcentaje de reducción en el costo por disposición final de residuos | J83: =D83/G56 -> 0.5
B84: Reducción de GEI (electricidad) | D84: =D78*0.3914/1000 -> 0.09785 | E84: tCO2eq
B85: Reducción de GEI (combustible) | D85: =(((G43-K43)*D98*(F98+H98*21+J98*310))+((G44-K44)*(1-D94)*D99*(F99+H99*21+J99*310))+((G45-K45)*(1-D95)*D100*(F100+H100*21+J100*310))+((G46-K46)*D101*(F101+H101*21+J101*310))+((G47-K47)*D102*(F102+H102*21+J102*310)))/1000 -> 1.352362972 | E85: tCO2eq
B86: TOTAL GEI reducido | D86: =D84+D85 -> 1.450212972 | E86: tCO2eq reducidas
B88: REPLICABILIDAD
B92: FOTOS
B93: IMAGEN (Fuente bibliográfica)
F95: Puntos
B98: Petróleo Industrial | D98: 0.0001507139567 | E98: TJ/gal | F98: 77400 | G98: FE (kgCO2/TJ) | H98: 3 | I98: FE (kgCH4/TJ) | J98: 0.6 | K98: FE (kgN2O/TJ)
B99: Diesel | D99: 0.000134504387 | E99: TJ/gal | F99: 74100 | G99: FE (kgCO2/TJ) | H99: 3 | I99: FE (kgCH4/TJ) | J99: 0.6 | K99: FE (kgN2O/TJ)
B100: Promedio Gasolina | D100: 0.0001178593919 | E100: TJ/gal | F100: 69300 | G100: FE (kgCO2/TJ) | H100: 3 | I100: FE (kgCH4/TJ) | J100: 0.6 | K100: FE (kgN2O/TJ)
B101: Gas Natural | D101: 3.603696842e-05 | E101: TJ/m3 | F101: 56126.26335 | G101: FE (kgCO2/TJ) | H101: 1 | I101: FE (kgCH4/TJ) | J101: 0.1 | K101: FE (kgN2O/TJ)
B102: GLP | D102: 4.73051902e-05 | E102: TJ/kg | F102: 63100 | G102: FE (kgCO2/TJ) | H102: 1 | I102: FE (kgCH4/TJ) | J102: 0.1 | K102: FE (kgN2O/TJ)

Sheet Instrucciones de la ficha
A1: Datos generales
A2: Este ítem consiste en completar la información referida a la empresa, tener en cuenta:
A3: 1) | B3: Nº RUC/ RUS | D3: Indicar el número de registro único de contribuyente/régimen único simplificado, según corresponda.
A4: 2) | B4: Razón social/Nombre comercial | D4: Colocar el nombre oficial o denominación con el que su empresa se encuentra registrada.
A5: 3) | B5: Representante legal/gerente general | D5: Colocar los nombres y apellidos de la persona que actúa en nombre de la empresa, puede ser el representante legal o el gerente general.
A6: 4) | B6: Género del/la representante legal/gerente general | D6: Lista desplegable con elementos para seleccionar, considera: femenino, masculino, prefiero no decir.
A7: 5) | B7: Sector económico al que pertenece su actividad económica | D7: Corresponde a la división de la actividad económica en el Perú, por ejemplo: industria manufacturera, agroindustria, minería, pesca, hidrocarburos, construcción, comercio, otros.
A8: 6) | B8: De ser una actividad de la industria manufacturera, grupo al que pertenece | D8: Este ítem contiene una lista desplegable con elementos para seleccionar, considerando tres (13) grupos establecidos en la normativa del PRODUCE y MINAM. Para mayor orientación, tenga en cuenta la "Clasificación Industrial Internacional Uniforme de todas las Actividades Económicas CIIU Revisión 4", consulte los siguientes links: *https://busquedas.elperuano.pe/normaslegales/decreto-supremo-que-modifica-el-reglamento-de-gestion-ambien-decreto-supremo-n-006-2019-produce-1783564-1/?fbclid=IwAR2dHVit03lpFp4IlcbZtFUxyK1XDiV_km8NNX-9YdNYfEw0G4Jp6s8CtQE *https://busquedas.elperuano.pe/normaslegales/modifican-el-listado-que-forma-parte-integrante-de-la-rm-n-resolucion-ministerial-n-129-2020-minam-1870820-1/
A9: 7) | B9: Especifique su actividad económica | D9: En caso haya colocado "industria manufacturera" en el numeral 5), casillero de sector económico, indicar el nombre de su actividad industrial en forma detallada, dichas actividades se encuentran clasificadas en base a la "Clasificación Industrial Internacional Uniforme de todas las Actividades Económicas CIIU Revisión 4" establecido por el Instituto Nacional de Estadística e Informática (INEI), en ese sentido, puede acceder y consultar el documento en el siguiente link: https://www.inei.gob.pe/media/MenuRecursivo/publicaciones_digitales/Est/Lib0883/Libro.pdf
A10: 8) | B10: Tamaño empresarial | D10: Lista desplegable que contiene elementos para seleccionar, indica el máximo valor de ventas que alcanza una empresa, en un año.
A11: 9) | B11: Datos de la persona que completa la ficha | D11: Indicar los nombres y apellidos, cargo, correo electrónico y teléfono de la persona que completará la ficha.
A12: Datos de la iniciativa
A13: Este apartado comprende la descripción de la iniciativa de economía circular que su empresa ha implementado, para ello, tener en consideración:
A14: 10) | B14: Nombre de la iniciativa | D14: Colocar un breve título que sintetice la iniciativa de EC implementada en su empresa. Tener en cuenta que, la iniciativa deberá estar relacionada a las siguientes medidas o estrategias de circularidad: *Cierra el círculo: Haz que tu producto no se convierta en residuos, que sea un recurso Se refiere a la idea de que nuestra economía actual que es lineal se transforme a un círculo, permitiendo que los residuos vuelvan a ingresar al sistema como recursos. Ejem.: Fabricación de productos prefabricados (adoquines, ladrillos King Kong, bloque de concreto) a partir de residuos de la construcción y demolición (RCD) *Mantén el crículo: Haz que tu producto perdure el mayor tiempo posible Se refiere a mantener en circulación un envase, producto, máquina o equipo descartado, en desuso o averiado, así como, cambiar sus partes o piezas para extender su vida útil. Estas medidas de circularidad permiten “retener” el valor del producto y la “restauración” en lugar de extraer más recursos. Ejm.: Cambia piezas averiadas de máquinas de confección por piezas nuevas o de segunda mano, Entrega/dona/comercializa sus equipos usados/ de segunda mano/ en desuso con otros proveedores para su posterior reutilización, etc. *Piensa circular: Diseña y fabrica eficiente y reduciendo el daño a las personas y el ambiente Se refiere a que el diseño de los productos incorpore principios de circularidad desde su concepción. Esta estrategia se encuentra relacionada a la aplicación de modelos de negocio, a través del diseño e innovación. Ejm.: Recircula el agua en su proceso productivo, utiliza materia prima de origen vegetal (biodegradable y no tóxica) en lugar de insumos tóxicos para fabricar productos de limpieza industrial. *Ve mas allá del círculo: Ayuda a que los recursos naturales no se dañen, ni se agoten, permite que se recuperen e incrementen En lugar de degradar continuamente la naturaleza, construimos capital natural, mediante el retorno de nutrientes biológicos a la biósfera. Una EC es regenerativa porque los sistemas vivos pueden “regenerar” (curar y renovar) los recursos que se consumen. Ejm.: Fabrica bebidas a base de superfrutos (camu camu o aguaje), comprados directamente de las comunidades amazónicas que protegen a bosques de la deforestación, utiliza códigos para la trazabilidad de los productos (Blockchain), etc. (Máximo 150 palabras)
A15: 11) | B15: Descripción de la iniciativa | D15: Desarrollar una breve descripción, en formar general, de la iniciativa de EC implementada. Considerar el objetivo principal y/o la problemática (qué buscaba solucionar y/o mejorar), lo cual le llevó a optar por implementar la iniciativa de EC. (Máximo 150 palabras).
A16: 12) | B16: Temáticas de circularidad, relacionadas a las estrategias de EC: | D16: Lista desplegable que contiene las temáticas relacionas a las estrategias de EC (cierra el círculo, mantén el círculo, piensa circular y ve más allá del círculo), las cuales se definen a continuación: *Segregar: Segregar o separar tus residuos, de forma diferenciada, según sus características. Esto facilita su transformación y valorización, en el marco de una adecuada gestión de los residuos sólidos. *Reciclar: Transformar de manera mecánica o industrial un residuo para generar materiales que pueden ser utilizados en la fabricación de nuevos productos. Es una operación de valorización. *Rescatar: Rescatar productos y/o envases que se encontraban averiados/fuera de uso/desgastados/antiguos/fuera de moda/, etc. para que estos sean utilizados como materia prima o insumo en la fabricación de nuevos productos. *Activos/infraestructura: Medida de circularidad relacionada a remanufacturar (cambiar), renovar (actualizar) o reparar (mantenimiento) maquinarias o equipos, que anteriormente se encontraban averiados/fuera de uso/desgastados/antiguos/fuera de moda, etc. Asimismo, permite gestionar eficientemente dichos activos. *Reutilizar: Volver a utilizar o seguir utilizando un producto o envase para el mismo fin para el que fue concebido. *Materia prima e insumos: Medida de circularidad relacionada a usar y gestionar eficientemente las materias primas, insumos, energía y agua, orientados hacia la reducción en su consumo *Estrategia de negocio: La economía circular y la sostenibilidad son parte de la propuesta de valor del negocio: misión, visión, principios y valores. *Ecodiseño: Incorporar criterios ambientales en la fase de diseño y desarrollo de un producto/envase. *Regenerar: Restaurar sistemas vivos dejándolos en condiciones iguales o mejores que al inicio.
A17: 13) | B17: Estado | D17: Lista desplegable que contiene elementos para seleccionar, indicar el estado de ejecución de la iniciativa de EC implementada.
A18: 14) | B18: Fecha de inicio de la iniciativa | D18: Colocar el año en que se implementó o se puso en marcha la iniciativa de EC.
A19: 15) | B19: Tiempo de implementación | D19: Colocar el periodo de duración de la iniciativa de EC, desde su puesta en marcha. Por ejemplo: Desde Octubre 2018-Actualidad
A20: 16) | B20: Lugar donde se implementa la iniciativa | D20: Indicar el departamento, provincia, distrito y dirección (manzana, calle, urbanización, lote u otros) donde se ubica la iniciativa de EC.
A21: 17) | B21: Inversión | D21: Colocar el monto total aproximado que ha requerido la implementación de la iniciativa de EC.
A22: 18) | B22: Fuente financiera | D22: Indicar la institución u otra entidad que ha financiado la implementación de la iniciativa de EC. El financiamiento puede ser propio o ajeno, a través de instituciones públicas/privadas, las cuales otorgan fondos para la generación de proyectos de innovación. En caso la iniciativa haya sido financiada mediante una institución bancaria incluir la tasa de interés.
A23: Impactos/beneficios
A24: Resultados cuantitativos
A25: Ambientales
A26: Para el llenado del presente apartado, completar la información de las variables, según la iniciativa de EC que su empresa ha implementado. Por ejemplo: si la iniciativa se refiere a "recirculación de efluentes", completar, principalmente, la información de las variables: "consumo de agua", "% agua residual recirculada" y "costo anual de agua", en caso que, la iniciativa repercuta además en otra variable (consumo anual de electricidad, consumo anual de combustible, etc.) deberá consignar dicha información.
A27: 19) | B27: Consumo anual de agua (de preferencia en m3) | D27: *Considerar el promedio anual del consumo de agua, previo a la implementación de la iniciativa. *Precisar que, el valor consignado deberá corresponder al uso de agua para su operación, es decir, uso industrial no doméstico. *Posibles proveedores del recurso: agua subterránea (pozo), agua potable, compra mediante camiones cisterna, etc. *Para obtener el promedio anual considerar los consumos mensuales de agua facturados en su recibo o, de ser el caso, comprobantes de compra (facturas, recibos, otros), según la siguiente ecuación: Donde: : Promedio anual del consumo de agua : Sumatoria de los consumos mensuales de agua. *Teniendo en consideración lo descrito anteriormente, completar la información sobre el consumo de agua en el casillero "después de la iniciativa de EC".
A28: 20) | B28: Consumo anual de electricidad (de preferencia en kWh) | D28: *Considerar el promedio anual del consumo de energía eléctrica, previo a la implementación de la iniciativa. *Para obtener el promedio anual considerar los consumos mensuales facturados en su recibo de energía eléctrica, según la siguiente ecuación: Donde: : Promedio anual del consumo de energía eléctrica : Sumatoria de los consumos mensuales de energía eléctrica *Teniendo en consideración lo descrito anteriormente, completar la información sobre el consumo de energía eléctrica en el casillero "después de la iniciativa de EC".
A29: 21) | B29: Consumo anual de combustible (de preferencia en galones) | D29: *Considerar el promedio anual del consumo de combustible, previo a la implementación de la iniciativa. *Para obtener el promedio anual considerar los consumos mensuales de combustible facturados en su recibo -en caso sea, gas natural GNV- ó en comprobantes de compra (facturas, recibos, otros) -en caso sea, petróleo, diesel, gasolina,gas natural, GLP etc., según la siguiente ecuación: Donde: : Promedio anual del consumo de combustible : Sumatoria de los consumos mensuales de combustible, comprende meses de enero hasta diciembre *Teniendo en consideración lo descrito anteriormente, completar la información sobre el consumo de combustible en el casillero "después de la iniciativa de EC".
A30: 22) | B30: Generación de residuos (de preferencia en toneladas o kilogramos) | D30: *Considerar el promedio anual del volumen de residuos generados, previo a la implementación de la iniciativa. *Para obtener el promedio anual considerar el volumen mensual de los residuos generados, según la siguiente ecuación: Donde: : Promedio anual del volumen de residuos generados : Sumatoria de los volúmenes mensuales de residuos generados *Teniendo en consideración lo descrito anteriormente, completar la información sobre el consumo de combustible en el casillero "después de la iniciativa de EC".
A31: 23) | B31: % de agua residual recirculada | D31: *Considerar que, las aguas residuales (efluentes) no domésticas son descargas de líquidos producidos por alguna actividad económica comercial e industrial, distinta a la generada por los usuarios domésticos, quienes descargan aguas residuales domésticas como producto de la preparación de alimentos, del aseo personal y de desechos fisiológicos¹. *Por otro lado, precisar que, las aguas residuales industriales requieren el tratamiento apropiado, previo a su recirculación (devolverse al proceso productivo) o reuso (uso en riego de áreas verdes, limpieza de la planta industrial, otros). Al respecto, existen diversos sistemas de tratamiento que permiten eliminar los contaminantes del efluente industrial, en ese sentido, el tipo o nivel de tratamiento elegido dependerá de la naturaleza de los contaminantes, de la carga de contaminación y del uso final al cual será destinado dicho efluente. *Para obtener el porcentaje (%) de agua residual o efluente recirculado, deberá realizar la siguiente ecuación: Donde: : Porcentaje de efluente recirculado en el (los) procesos productivos, en un año. : Efluente recirculado en el (los) procesos productivos, en un año. : Efluente total generado en el (los) procesos productivos, en un año. (1)Reglamento de Valores Máximos Adminsibles (VMA) para descargas de aguas residuales no domésticas en el sistema de alcantarilldo sanitario, aprobado mediante Decreto Supremo Nº 010-2019-VIVIENDA.
A32: 24) | B32: % de mermas, subproductos u otros de similar naturaleza | D32: *Considerar que, las mermas, subproductos u otros de similar naturaleza constituyen materiales residuales que pueden ser reinsertados o aprovechados (reuso, reciclaje, otros) como materia prima o insumos para la fabricación de diversos productos. Esto, debido a la relevancia de que las empresas incorporen estrategias de circularidad, con la finalidad de aprovechar al máximo la reutilización de productos, componentes y materiales y optimizar la creación de valor¹. *Para obtener el porcentaje (%) de merma, subproductos u otros, deberá realizar la siguiente ecuación: Donde: : Porcentaje de material residual (merma, subproducto u otro similar) reinsertado en el (los) procesos productivos o aprovechado para otros fines, en un año. : Material residual reinsertado o aprovechado, en un año. : Material residual total generado en el (los) procesos productivos, en un año. (1)Adaptación según lo establecido en la Modificación de la Ley de Gestión Integral de Residuos, aprobada mediante Decreto Legislativo Nº 1501 y, la Guía Peruana “GP 127:2021. ECONOMÍA CIRCULAR. Marco para la implementación de los principios de la economía circular en las organizaciones
A33: 25) | B33: % de energía renovable | D33: *Considerar que, la energía es un recurso esencial para los procesos productivos que incluyen el funcionamiento de las máquinas, equipos e instalaciones, en ese sentido, es importante que se fomente el intercambio de la energía convencional de fuentes no renovables (petróleo, carbón, etc.) o altamente contaminantes, por el uso de energía renovable de fuentes naturales (solar, eólica, geotérmica, biomasa, etc.). La aplicación de las energías renovables mejora la competitividad de las empresas¹. Por ejemplo: Instalación de paneles solares que generan energía renovable para ser aprovechada en procesos productivos. *Para obtener el porcentaje (%) de energía renovable, deberá realizar la siguiente ecuación: Donde: : Porcentaje de energía renovable utilizada en el (los) procesos productivos, en un año. : Energía renovable utilidad en el (los) procesos productivos, en un año en kWh. : Energía total utilizada en el (los) procesos productivos, en un año en kWh. (1) La industria de la energía renovable en el Perú: 10 años de contribuciones a la mitigación del cambio climático. Organismo Supervisor de la Inversión en Energía y Minería (Osinergmin). Lima. Primera edición. Febrero 2017.
A34: 26) | B34: Otros | D34: *Considerar otro tipo de indicadores que permitan medir las iniciativas de EC implementadas por la empresa. Por ejemplo: En una economía circular, los materailes y productos deben mantener el mayor valor posible durante el mayor tiempo, en ese sentido, algunos indicadores relacionado a ello, serían % materia prima reducida, % material reciclado utilizado, % materia prima de fuente renovable, entre otros
A35: Económicos
A36: 27) | B36: Costo anual del agua (soles) | D36: *Considerar el promedio anual del costo por consumo de agua, previo a la implementación de la iniciativa. *Precisar que, el valor consignado deberá corresponder al costo por uso de agua en su operación, es decir, uso industrial no doméstico. *Para obtener el promedio anual considerar los costos mensuales por consumo de agua facturados en su recibo o, de ser el caso, comprobantes de compra (facturas, recibos, otros), según la siguiente ecuación: Donde: : Promedio anual (soles) del costo por consumo de agua : Sumatoria de los costos por los consumo mensual de agua *Teniendo en consideración lo descrito anteriormente, completar la información sobre el costo anual por consumo de agua en el casillero "después de la iniciativa de EC".
A37: 28) | B37: Costo anual del electricidad (soles) | D37: *Considerar el promedio anual del costo por consumo de energía eléctrica, previo a la implementación de la iniciativa. *Para obtener el promedio anual considerar los costos mensuales facturados en su recibo de energía eléctrica, según la siguiente ecuación: Donde: : Promedio anual (soles) del costo por consumo de energía eléctrica : Sumatoria de los costos por los consumos mensuales de agua energía eléctrica *Teniendo en consideración lo descrito anteriormente, completar la información sobre el costo anual por consumo de energía eléctrica en el casillero "después de la iniciativa de EC".
A38: 29) | B38: Costo anual de combustible | D38: *Considerar el promedio anual del costo por consumo de combustible, previo a la implementación de la iniciativa. *Para obtener el promedio anual considerar los costos mensuales de combustible facturados en su recibo -en caso sea, gas natural GNV- ó en comprobantes de compra (facturas, recibos, otros) -en caso sea, petróleo, diesel, gasolina, etc., según la siguiente ecuación: Donde: : Promedio anual (soles) del costo por consumo de energía eléctrica : Sumatoria de los costos por los consumos mensuales de agua energía eléctrica *Teniendo en consideración lo descrito anteriormente, completar la información sobre el costo anual por consumo de energía eléctrica en el casillero "después de la iniciativa de EC".
A39: 30) | B39: Otros | D39: *Considerar otro tipo de indicadores que midan el impacto en los costos, productividad, ventas totales u otros relacionados. Por ejemplo: para medir la productividad se puede aplicar la siguiente fórmula: (productos o servicios producidos) / (Insumos o recursos utilizados).
A40: Resultados cualitativos
A41: 31) | B41: Ambientales | D41: *Colocar los impactos y beneficios ambientales que se obtendrían por la implementación de la iniciativa de EC. Por ejemplo: reducción de la contaminación ambiental por la generación de efluentes industriales, disminución de residuos que se disponen en el ambiente que pueden impactar negativamente a los ecosistemas, reducción del agotamiento de recursos por la eficiencia en su uso de los mismos, entre otros (Máximo 150 palabras).
A42: 32) | B42: Económicos | D42: *Mencionar los impactos y beneficios económicos que se obtendrían por la implementación de la iniciativa de EC. Por ejemplo: aumento de ingresos por la creación de una nueva línea de negocio en base a productos reciclados, reducción de costos por la disminución del consumo de recursos, disminución de costos por la disposición de residuos a través de empresas operadoras (Máximo 150 palabras).
A43: 33) | B43: Sociales | D43: *Colocar los impactos y beneficios sociales que se obtendrían por la implementación de la iniciativa de EC. Por ejemplo: aumento de ingresos económicos a la población local, aumento de empleo, entre otros (Máximo 150 palabras).
A44: Replicabilidad
A45: En caso tenga conocimiento de que la iniciativa implementada por su empresa pueda ser replicada/repetida en otra empresa (sea de la mismo rubro u otra actividad económica), considerar completar el presente apartado (Máximo 150 palabras).
A46: Fotos
A47: Colocar fotos u otros elementos que evidencien o estén relacionados con la implementación de la iniciativa de EC (mínimo dos fotografías).

Sheet Lista_Act_EC (hidden)
C3: Industria de alimentos
C4: Industria de bebidas
C5: Industria textil
C6: Industria de cuero y productos
C7: Producción de madera y fabricación de productos de madera y corcho, excepto muebles; fabricación de artículos de paja y de materiales trenzables
C8: Fabricación de papel y de productos de papel; impresión y reproducción de grabaciones
C9: Fabricación de sustancias y productos químicos; fabricación de productos farmacéuticas, sustancias químicas medicinales y productos botánicos de uso farmacéuticos
C10: Industria de productos de caucho y de plástico
C11: Fabricación de otros productos minerales no metálicos
C12: Fabricación de metales comunes; fabricación de productos elaborados de metal, excepto maquinaria y equipo
C13: Industria de productos de informática y equipos eléctricos
C14: Fabricación de maquinaria y equipo n.c.p., vehículos automotores, remolques y semirremolques, otros equipos de transporte
C15: Fabricación de muebles, reparación e instalación de maquinaria y/o equipos y otras industrias manufactureras

Sheet CONCEPTO11R`S (hidden)
A2: Estrategia de las 11 R´s | C2: Definiciones propuestas | D2: Palabras claves | E2: Información para aclarar algunos términos utilizados en las definiciones | F2: Definición extraída de documentos consultados | G2: Preguntas formuladas en la calculadora
A3: CERRAR EL FLUJO (Reducir el impacto: Usar residuos como recursos) Adentro o afuera de la mipyme | B3: Recover - Recuperar | C3: Separar/segregar los residuos según tipo: aprovechables (papel, cartón, orgánico, metal, vidrio, plástico), no aprovechables (residuos sanitarios, otros) y peligrosos, para su posterior aprovechamiento | D3: Separar/segregar | E3: Según NTP 900.058-2019 Aprovechamiento: volver a obtener un beneficio del bien, artículo, elemento o parte del mismo que constituye residuo sólido Según DS 001-2022-MINAM Aprovechamiento: Volver a obtener un beneficio del bien, artículo, elemento o parte de este que constituye residuo sólido orgánico e inorgánico. | F3: Recuperación técnicamente factible y económicamente viable de nutrientes, compuestos, materiales, partes, componentes o incluso productos (dependiendo de la organización) al mismo nivel de equivalencia funcional a través de la reutilización, reparación, reacondicionamiento, reutilización, refabricación, reciclaje, biodegradación. (incluido el compostaje) | G3: ¿Separa/ segrega sus residuos pot tipo?
B4: Recycle - Reciclar | C4: Aprovechar un residuo mediante la recuperación del mismo a su nivel material, permitiendo así el uso de esos materiales en la fabricación de productos con fines similares/iguales al productos original o para cualquier otra finalidad | D4: Aprovechamiento/valorización | E4: Según NTP 900.058-2019 Reciclaje: toda actividad que permite aprovechar un residuo mediante un proceso de transformación material, para cumplir su fin inicial u otros fines | F4: Recuperar un producto a su nivel material, permitiendo así el uso de esos materiales en la fabricación de nuevos productos, materiales o sustancias, para objetivos similares al productos original o para otros fines | G4: ¿Aprovecha residuos para generar algún beneficio?
B5: Repurpose -Replantear | C5: Medida de circularidad que permite utilizar materiales, partes, piezas, productos y/o envases fuera de uso o descartados para comercializarlo o fabricar un nuevo producto (función distinta o diferente al original). | D5: Innovar | F5: Recuperar un producto descartado o algunas de sus partes, en un nuevo producto con una función diferente. | G5: ¿Rescata materiales, partes, piezas, productos y/o envases fuera de uso o descartados para venderlas y/o fabricar nuevos producto?
A6: DESACELERAR EL FLUJO (Optimizar: mantener los productos en uso por mayor tiempo) Adentro de la mipyme | B6: Remanufacture - Remanufacturar | C6: Medida de circularidad que permite utilizar partes o piezas de otras -maquinarias, equipos, productos o envases- en desuso (descartados), en aquellos que se encuentren averíados pero cumplen la misma función. | D6: Rehacer | F6: Recuperar partes o piezas de un producto descartado o en desuso, en un nuevo producto que cumple la misma función (como en estado casi nuevo). | G6: ¿Utiliza partes o piezas de otras maquinarias/ equipos/ productos/ envases en desuso para remanufacturar aquellos que estén averiados?
B7: Refurbish - Renovar | C7: Renovar, restaurar o actualizar -maquinarias, equipos, productos o envases- antiguos para que se puedan volver a utilizar, sin cambios en la funcionalidad del producto | D7: Actualizar/restaurar | F7: Renovar o actualizar un producto antiguo, implica una restauración importante, sin cambios en la funcionalidad del producto. | G7: ¿Renueva sus maquinarias/ equipos/ productos/ envases antiguos para que puedan funcionar con un rendimiento similar a uno nuevo?
B8: Repair - Reparar | C8: Reparar y realizar mantenimiento correctivo (reparación habitual) de maquinarias y equipos averíados, para que se puedan volver a utilizar o mantengan su vida útil. | D8: Mantener/arreglar | F8: Reparar y mantener un producto descartado o defectuoso, de forma que pueda ser utilizado con su función original. | G8: ¿Realizan mantenimiento correctivo a sus maquinarias y equipos que estén averiados para que mantengan su vida útil con la misma función?
B9: Reuse - Reutilizar | C9: Medida de circularidad que permite volver a utilizar un producto/envase (en buen estado) para el mismo fin para el que fue concebido. | D9: Repetir | E9: Según DS 001-2022-MINAM Reutilización: Actividad que permite volver a utilizar los residuos sólidos como componentes y/o materiales, para darles un uso diferente a aquel para el que fueron concebidos. Se considera una forma de valorización. Se ha considerado que debe cumplir su función original porque si fuese una función distinta sería considerado como replantear. La finalidad es mantener el producto y su vida útil el mayor tiempo posible. | F9: Dar un nuevo uso a un producto descartado que aún se encuentra en buenas condiciones y cumple con su función original (y no es residuo) para el mismo fin para el que fue concebido. | G9: ¿Realiza mantenimiento preventivo de sus maquinarias y equipos en su negocio para extender su vida útil? ¿Promueve que sus clientes reutilicen sus productos/ envases? ¿Capta productos/ envases luego de su uso por los clientes para hacerles mantenimiento y volver a ofrecerlos al mercado?
A10: CONTRAER EL FLUJO (Diseño: diseñar sin residuos) uso inteligente del producto | B10: Reduce - Reducir | C10: Medida de circularidad que permite incrementar la eficiencia (reducción del uso de recursos y energía) en la fabricación de un producto/envase | D10: Minimizar/eficiencia | F10: Incrementar la eficiencia en la fabricación y el uso del producto al consumir menos recursos naturales y materiales. | G10: ¿Implementa prácticas para usar la menor cantidad de materias primas e insumos en sus procesos productivos? ¿Implementa prácticas para reducir el consumo de agua en su negocio? ¿Implementa prácticas para reducir el consumo de energía en su negocio?
B11: Rethink - Repensar | C11: Medida de circularidad que aborda el diseño del producto/envase y permite utilizar -subproducto, merma, materia prima secundaria- una mayor cantidad de veces reduciendo el impacto ambiental (facilitando su reciclaje, menor uso de recursos, etc.) | D11: Diseño | E11: Según DS 001-2022-MINAM Materia prima secundaria: Se denomina materia prima secundaria a todos los insumos, materias o recursos, distintos de las materias primas provenientes de recursos naturales, y que proceden de un proceso de transformación o recuperación, uso o consumo, perdiendo su característica de residuo; de forma tal que es posible su uso directo en un nuevo proceso de producción | F11: Hacer que el uso del producto sea más intensivo (a través de productos como servicio, reutilización y modelos compartidos o poniendo productos multifuncionales en el mercado) | G11: ¿Reinserta subproductos, mermas, materiales residuales u otros en sus procesos productivos? ¿Ofreces programas de fidelización del cliente para la reposición de los productos/ envases? ¿Su producto/ envase incorpora todas las siguientes características desde su diseño? *Incorpora material reciclado y/o renovable *Facilita su reciclaje (forma, color, composición, otros) *En su uso se consume la menor cantidad de recursos (agua, energía, materiales). *Otros que reduzcan el impacto ambiental
B12: Refuse - Rechazar | C12: Rechazar y/o sustituir las materia primas o insumos que se utilizan en la fabricación de un producto/envase de amplia extensión de vida útil, para generar un impacto menor al ambiente. | D12: Sustituir | F12: Lograr que un producto sea innecesario al abandonar su función u ofreciendo la misma función por un producto o servicio radicalmente diferente. | G12: ¿Sustituye materias primas o insumos para que no dañen el ambiente ni la salud humana? (composición) ¿Su producto está diseñado para usarlo la mayor cantidad de veces posible? (ampliar la extensión de vida útil)
A13: REGENERAR EL FLUJO | B13: Regenerate - Regenerar | C13: Medida de circularidad que permite a una empresa tener la capacidad de restaurar sistemas vivos (como ecosistemas, suelo, agua, etc.) dejandolo en condiciones iguales o mejores que al inicio. | D13: Restaurar | F13: Tener la capacidad de restaurar los recursos materiales y mejorar la salud del ecosistema para garantizar la productividad y otros beneficios (p. ej., captura de carbono, biodiversidad y otros servicios del ecosistema) | G13: ¿Realiza prácticas que conserven o mejoren los recursos naturales que utiliza para su producto? ¿El agua consumida en sus operaciones de su negocio es regresada al origen o vertida al desagüe en condiciones iguales o mejores con las que ingresó a su negocio? ¿Utiliza energías renovables (solar, eólica, biomasa, geotermica, etc.) en sus operaciones?

Sheet GRAFICA-CALCUL (hidden)
C2: PREGUNTAS
B3: R`s | C3: RECUPERAR | D3: RECICLAR | E3: REPLANTEAR | F3: REMANUFACTURA | H3: RENOVAR | J3: REPARAR | L3: REUTILIZAR | P3: REDUCIR | S3: REPENSAR | V3: RECHAZAR | AC3: REGENERAR | AI3: PUNTAJES
B4: PUNTAJES POR R | C4: 1 | D4: 2 | E4: 3 | F4: 4 | H4: 4 | J4: 4 | L4: 4 | P4: 5 | S4: 6 | V4: 7 | AC4: +2 | AD4: +2 | AE4: +2 | AH4: Nº PREG | AI4: PUNTAJE TOTAL POR R | AJ4: SI | AM4: PARCIAL | AP4: NO
B5: EMPRESAS | C5: P1 | D5: P2 | E5: P3 | F5: P4 | G5: P5 | H5: P6 | I5: P7 | J5: P8 | K5: P9 | L5: P10 | M5: P11 | N5: P12 | O5: P13 | P5: P14 | Q5: P15 | R5: P16 | S5: P17 | T5: P18 | U5: P19 | V5: P20 | W5: P21 | X5: TOTAL | Y5: SI | Z5: PARCIAL | AA5: NO | AC5: P19 | AD5: P20 | AE5: P21 | AG5: Recuperar | AH5: 1 | AI5: 1 | AJ5: 1 | AK5: =AJ5*AH5 -> 1 | AL5: =(AK5*$AL$15)/$AK$15 -> 0.02503128911 | AM5: 0.5 | AN5: =AM5*AH5 -> 0.5 | AO5: =(AN5*$AO$15)/$AN$15 -> 0.01262626263 | AP5: =+AJ5*0.02 -> 0.02 | AQ5: =AP5*AH5 -> 0.02 | AR5: =(AQ5*$AR$15)/$AQ$15 -> 0.0005006257822
B6: E1 | C6: 1 | D6: 2 | E6: 1.5 | F6: 2 | G6: 1 | H6: 2 | I6: 1 | J6: 2 | K6: 1 | L6: 1 | M6: 1 | N6: 1 | O6: 1 | P6: 1.5 | Q6: 1 | R6: 0.2 | S6: 2 | T6: 1 | U6: 0.2 | V6: 3.5 | W6: 3.5 | X6: =SUM(C6:W6) -> 30.4 | Y6: =COUNTIF(C6,1)+COUNTIF(D6,2)+COUNTIF(E6:E6,1.5)+COUNTIF(F6:G6,2)+COUNTIF(H6:I6,2)+COUNTIF(J6:K6,2)+COUNTIF(L6:O6,2.5)+COUNTIF(P6:R6,1.5)+COUNTIF(S6:U6,2)+COUNTIF(W6,6) -> 8 | Z6: =COUNTIF(C6,0.5)+COUNTIF(D6,1)+COUNTIF(E6:E6,1)+COUNTIF(F6:G6,1)+COUNTIF(H6:I6,1)+COUNTIF(J6:K6,1)+COUNTIF(L6:O6,1.5)+COUNTIF(P6:R6,1)+COUNTIF(S6:U6,1)+COUNTIF(W6,3) -> 5 | AA6: =COUNTIF(C6,0.2)+COUNTIF(D6,0.2)+COUNTIF(E6:E6,0.2)+COUNTIF(F6:G6,0.2)+COUNTIF(H6:I6,0.2)+COUNTIF(J6:K6,0.2)+COUNTIF(L6:O6,0.2)+COUNTIF(P6:R6,0.2)+COUNTIF(S6:U6,0.2)+COUNTIF(W6,0.2) -> 2 | AG6: Reciclar | AH6: 1 | AI6: 2 | AJ6: 2 | AK6: =AJ6*AH6 -> 2 | AL6: =(AK6*$AL$15)/$AK$15 -> 0.05006257822 | AM6: 1 | AN6: =AM6*AH6 -> 1 | AO6: =(AN6*$AO$15)/$AN$15 -> 0.02525252525 | AP6: =+AJ6*0.02 -> 0.04 | AQ6: =AP6*AH6 -> 0.04 | AR6: 0.001001251564
B7: E2 | AG7: Replantear | AH7: 1 | AI7: 3 | AJ7: 3 | AK7: 3 | AL7: 0.07509386733 | AM7: 1.5 | AN7: 1.5 | AO7: 0.03787878788 | AP7: 0.06 | AQ7: 0.06 | AR7: 0.001501877347
B8: E3 | AG8: Remanufacturar | AH8: 2 | AI8: 4 | AJ8: 2 | AK8: 4 | AL8: 0.1001251564 | AM8: 1 | AN8: 2 | AO8: 0.05050505051 | AP8: 0.04 | AQ8: 0.08 | AR8: 0.002002503129
B9: E4 | AG9: Renovar | AH9: 2 | AI9: 4 | AJ9: 2 | AK9: 4 | AL9: 0.1001251564 | AM9: 1 | AN9: 2 | AO9: 0.05050505051 | AP9: 0.04 | AQ9: 0.08 | AR9: 0.002002503129
B10: E5 | AG10: Reparar | AH10: 2 | AI10: 4 | AJ10: 2 | AK10: 4 | AL10: 0.1001251564 | AM10: 1 | AN10: 2 | AO10: 0.05050505051 | AP10: 0.04 | AQ10: 0.08 | AR10: 0.002002503129
B11: E6 | AG11: Reutilizar | AH11: 4 | AI11: 4 | AJ11: 1 | AK11: 4 | AL11: 0.1001251564 | AM11: 0.5 | AN11: 2 | AO11: 0.05050505051 | AP11: 0.02 | AQ11: 0.08 | AR11: 0.002002503129
B12: E7 | AG12: Reducir | AH12: 3 | AI12: 5 | AJ12: 1.65 | AK12: 4.95 | AL12: 0.1239048811 | AM12: 0.8 | AN12: 2.4 | AO12: 0.06060606061 | AP12: 0.033 | AQ12: 0.099 | AR12: 0.002478097622
B13: E8 | AG13: Repensar | AH13: 3 | AI13: 6 | AJ13: 2 | AK13: 6 | AL13: 0.1501877347 | AM13: 1 | AN13: 3 | AO13: 0.07575757576 | AP13: 0.04 | AQ13: 0.12 | AR13: 0.003003754693
B14: E9 | AG14: Rechazar | AH14: 2 | AI14: 7 | AJ14: 3.5 | AK14: =AJ14*AH14 -> 7 | AL14: 0.1752190238 | AM14: 1.7 | AN14: 3.4 | AO14: 0.08585858586 | AP14: 0.07 | AQ14: 0.14 | AR14: 0.003504380476
B15: E10 | AG15: TOTAL | AH15: =SUM(AH5:AH14) -> 21 | AI15: =SUM(AI5:AI14) -> 40 | AK15: =SUM(AK5:AK14) -> 39.95 | AL15: 1 | AN15: =SUM(AN5:AN14) -> 19.8 | AO15: 0.5 | AQ15: =SUM(AQ5:AQ14) -> 0.799 | AR15: 0.02
B16: TOTAL | C16: =SUM(C6:C15) -> 1 | D16: =SUM(D6:D15) -> 2 | E16: 1.5 | F16: 2 | G16: 1 | H16: 2 | I16: 1 | J16: 2 | K16: 1 | L16: 1 | M16: 1 | N16: 1 | O16: 1 | P16: 1.5 | Q16: 1 | R16: 0.2 | S16: 2 | T16: 1 | U16: 0.2 | W16: 3.5 | AC16: 0 | AD16: 0 | AE16: 0 | AO16: =SUM(AO5:AO14) -> 0.5 | AR16: =SUM(AR5:AR14) -> 0.02
AG17: Regenerar | AH17: 3 | AI17: 6 | AJ17: 2 | AK17: =AJ17*AH17 -> 6 | AL17: 0.06 | AM17: 1 | AN17: =AM17*AH17 -> 3 | AO17: 0.03 | AP17: 0 | AQ17: 0 | AR17: 0
AD20: Eres una mipyme con un alto nivel de implementación de medidas de circularidad, eres un ejemplo | AJ20: 80-100
AD21: Ya estas camino a la circularidad, sigue motivado | AJ21: 51-79
AD22: Ya estas camino a la circularidad, tienes oportunidades de mejorar en la implementación de tus medidas | AJ22: 26-50
AD23: Has iniciado el camino de la circularidad | AJ23: 3-25
AD24: Te invitamos a iniciar tu viaje a la circularidad | AJ24: 0-2

Sheet REPORTE (hidden)
A1: Datos de la empresa
A7: Nivel de circularidad
A13: Te invitamos a iniciar tu viaje a la circularidad | B13: Has iniciado el camino de la circularidad | C13: Ya estas camino a la circularidad, tienes oportunidades de mejorar | D13: Ya estas camino a la circularidad, sigue motivado | E13: Eres mipyme circular, eres un ejemplo
A14: 0-11% | B14: 12-33% | C14: 34-54% | D14: 55-79% | E14: 80-100%
A16: Resultados
A18: 10 Rs | B18: Puntaje | C18: Puntaje obtenido (%)
A19: Recuperar | B19: 1
A20: Reciclar | B20: 2
A21: Replantear | B21: 3
A22: Remanufacturar | B22: 4
A23: Renovar | B23: 4
A24: Reparar | B24: 4
A25: Reutilizar | B25: 5
A26: Repensar | B26: 6
A27: Reducir | B27: 6
A28: Rechazar | B28: 6
A29: TOTAL
A31: Bonificación circular
A34: Regenerar
A37: ¡Felicitaciones! Haz logrado realizar cambios significativos en tus operaciones hacia un modelo circular
A39: Recomendaciones (a nivel general según el resultado)
A45: Diseña tu compromiso 2023 e implementa medidas de circularidad
A46: Selecciona DOS de las R`s que te gustaría mejorar o implementar para tu empresa
A47: EJEMPLO | B47: Objetivo | C47: Plazo (De 6 meses a 1 año)
A48: Reciclar | B48: Mejoro en un 20% el reciclaje de partes, piezas o materiales de mis productos fabricados
A53: Oportunidades (no se inlcuye en el PILOTO)
A55: 11 Rs | B55: Oportunidades
A56: Recuperar | B56: Colocar texto en base a las preguntas a las cuales respondió "SI", "NO" o "Parcialmente"
A57: Reciclar
A58: Replantear
A59: Remanufacturar
A60: Renovar
A61: Reparar
A62: Reutilizar
A63: Repensar
A64: Reducir
A65: Rechazar
A66: Regenerar
A69: ¡ENTÉRATE MÁS SOBRE ESTA NUEVA FORMA DE PRODUCIR INCRMENTANDO LA PRODUCTIVIDAD Y COMPETITIVIDAD!
A70: (Colocar enlace de la Coalición)

Sheet DEPART_PROV (hidden)
B3: Amazonas | C3: Áncash | D3: Apurímac | E3: Arequipa | F3: Ayacucho | G3: Cajamarca | H3: Callao | I3: Cusco | J3: Huancavelica | K3: Huánuco | L3: Ica | M3: Junín | N3: La_Libertad | O3: Lambayeque | P3: Lima | Q3: Loreto | R3: Madre_de_Dios | S3: Moquegua | T3: Pasco | U3: Piura | V3: Puno | W3: San_Martín | X3: Tacna | Y3: Tumbes | Z3: Ucayali_
B4: Bagua | C4: Aija | D4: Abancay | E4: Arequipa_ | F4: Cangallo | G4: Cajabamba | H4: Callao | I4: Acomayo | J4: Acobamba | K4: Ambo | L4: Chincha | M4: Chanchamayo | N4: Ascope | O4: Chiclayo | P4: Barranca | Q4: Alto_Amazonas | R4: Manu | S4: General Sánchez Cerro | T4: Daniel Alcides Carrión | U4: Ayabaca | V4: Azángaro | W4: Bellavista | X4: Candarave | Y4: Contralmirante Villar | Z4: Atalaya
B5: Bongará | C5: Antonio_Raymondi | D5: Andahuaylas | E5: Camaná | F5: Huamanga | G5: Cajamarca_ | I5: Anta | J5: Angaraes | K5: Dos de Mayo | L5: Ica_ | M5: Chupaca | N5: Bolívar | O5: Ferreñafe | P5: Cajatambo | Q5: Datem del Marañón | R5: Tahuamanu | S5: Ilo | T5: Oxapampa | U5: Huancabamba | V5: Carabaya | W5: El Dorado | X5: Jorge Basadre | Y5: Tumbes_ | Z5: Coronel_Portillo
B6: Chachapoyas | C6: Asunción | D6: Antabamba | E6: Caravelí | F6: Huanca Sancos | G6: Celendín | I6: Calca | J6: Castrovirreyna | K6: Huacaybamba | L6: Nazca | M6: Concepción | N6: Chepén | O6: Lambayeque_ | P6: Canta | Q6: Loreto_ | R6: Tambopata | S6: Mariscal Nieto | T6: Pasco_ | U6: Morropón | V6: Chucuito | W6: Huallaga | X6: Tacna_ | Y6: Zarumilla | Z6: Padre Abad
B7: Condorcanqui | C7: Bolognesi | D7: Aymaraes | E7: Castilla | F7: Huanta | G7: Chota | I7: Canas | J7: Churcampa | K7: Huamalíes | L7: Palpa | M7: Huancayo | N7: Gran Chimú | P7: Cañete | Q7: Mariscal Ramón Castilla | U7: Paita | V7: El Collao | W7: Lamas | X7: Tarata | Z7: Purús
B8: Luya | C8: Carhuaz | D8: Chincheros | E8: Caylloma | F8: La Mar | G8: Contumazá | I8: Canchis | J8: Huancavelica_ | K8: Huánuco_ | L8: Pisco | M8: Jauja | N8: Julcán | P8: Huaral | Q8: Maynas | U8: Piura_ | V8: Huancané | W8: Mariscal Cáceres
B9: Rodríguez de Mendoza | C9: Carlos_Fermín_Fitzcarrald | D9: Cotabambas | E9: Condesuyos | F9: Lucanas | G9: Cutervo | I9: Chumbivilcas | J9: Huaytará | K9: Lauricocha | M9: Junín_ | N9: Otuzco | P9: Huarochirí | Q9: Putumayo | U9: Sechura | V9: Lampa | W9: Moyobamba
B10: Utcubamba | C10: Casma | D10: Grau | E10: Islay | F10: Parinacochas | G10: Hualgayoc | I10: Cusco_ | J10: Tayacaja | K10: Leoncio Prado | M10: Satipo | N10: Pacasmayo | P10: Huaura | Q10: Requena | U10: Sullana | V10: Melgar | W10: Picota
C11: Corongo | E11: La Uniòn | F11: Pàucar del Sara Sara | G11: Jaén | I11: Espinar | K11: Marañón | M11: Tarma | N11: Pataz | P11: Lima_ | Q11: _Ucayali | U11: Talara | V11: Moho | W11: Rioja
C12: Huaraz | F12: Sucre | G12: San Ignacio | I12: La Convención | K12: Pachitea | M12: Yauli | N12: Sánchez Carrión | P12: Oyón | V12: Puno_ | W12: San Martín_
C13: Huari | F13: Víctor Fajardo | G13: San Marcos | I13: Paruro | K13: Puerto Inca | N13: Santiago de Chuco | P13: Yauyos | V13: San Antonio de Putina | W13: Tocache
C14: Huarmey | F14: Vilcas Huamán | G14: San Miguel | I14: Paucartambo | K14: Yarowilca | N14: Trujillo | V14: San Román
C15: Huaylas | G15: San Pablo | I15: Quispicanchi | N15: Virú | V15: Sandia
C16: Mariscal Luzuriaga | G16: Santa Cruz | I16: Urubamba | V16: Yunguyo
C17: Ocros
C18: Pallasca
C19: Pomabamba
C20: Recuay
C21: Santa
C22: Sihuas
C23: Yungay

Sheet PROVI_DISTR (hidden)
B3: Abancay | C3: Acobamba | D3: Acomayo | E3: Aija | F3: Alto_Amazonas | G3: Ambo | H3: Andahuaylas | I3: Angaraes | J3: Anta | K3: Antabamba | L3: Antonio_Raymondi | M3: Arequipa_ | N3: Ascope | O3: Asunción | P3: Atalaya | Q3: Ayabaca | R3: Aymaraes | S3: Azángaro | T3: Bagua | U3: Barranca | V3: Bellavista | W3: Bolívar | X3: Bolognesi | Y3: Bongará | Z3: Cajabamba | AA3: Cajamarca_ | AB3: Cajatambo | AC3: Calca | AD3: Camaná | AE3: Canas | AF3: Canchis | AG3: Candarave | AH3: Cangallo | AI3: Canta | AJ3: Cañete | AK3: Carabaya | AL3: Caravelí | AM3: Carhuaz | AN3: Carlos_Fermín_Fitzcarrald | AO3: Casma | AP3: Castilla | AQ3: Castrovirreyna | AR3: Caylloma | AS3: Celendín | AT3: Chachapoyas | AU3: Chanchamayo | AV3: Chepén | AW3: Chiclayo | AX3: Chincha | AY3: Chincheros | AZ3: Chota | BA3: Chucuito | BB3: Chumbivilcas | BC3: Chupaca | BD3: Churcampa | BE3: Concepción | BF3: Condesuyos | BG3: Condorcanqui | BH3: Contralmirante Villar | BI3: Contumazá | BJ3: Coronel_Portillo | BK3: Corongo | BL3: Cotabambas | BM3: Cusco_ | BN3: Cutervo | BO3: Daniel Alcides Carrión | BP3: Datem del Marañón | BQ3: Dos de Mayo | BR3: El Collao | BS3: El Dorado | BT3: Espinar | BU3: Ferreñafe | BV3: General Sánchez Cerro | BW3: Gran Chimú | BX3: Grau | BY3: Huacaybamba | BZ3: Hualgayoc | CA3: Huallaga | CB3: Huamalíes | CC3: Huamanga | CD3: Huanca Sancos | CE3: Huancabamba | CF3: Huancané | CG3: Huancavelica_ | CH3: Huancayo | CI3: Huanta | CJ3: Huánuco_ | CK3: Huaral | CL3: Huaraz | CM3: Huari | CN3: Huarmey | CO3: Huarochirí | CP3: Huaura | CQ3: Huaylas | CR3: Huaytará | CS3: Ica_ | CT3: Ilo_ | CU3: Islay | CV3: Jaén | CW3: Jauja | CX3: Jorge Basadre | CY3: Julcán | CZ3: Junín_ | DA3: La Convención | DB3: La Mar | DC3: La Uniòn | DD3: Lamas | DE3: Lambayeque_ | DF3: Lampa | DG3: Lauricocha | DH3: Leoncio Prado | DI3: Lima_ | DJ3: Loreto_ | DK3: Lucanas | DL3: Luya | DM3: Manu | DN3: Marañón | DO3: Mariscal Cáceres | DP3: Mariscal Luzuriaga | DQ3: Mariscal Nieto | DR3: Mariscal Ramón Castilla | DS3: Maynas | DT3: Melgar | DU3: Moho | DV3: Morropón | DW3: Moyobamba | DX3: Nazca | DY3: Ocros | DZ3: Otuzco | EA3: Oxapampa | EB3: Oyón | EC3: Pacasmayo | ED3: Pachitea | EE3: Padre Abad | EF3: Paita | EG3: Pallasca | EH3: Palpa | EI3: Parinacochas | EJ3: Paruro | EK3: Pasco_ | EL3: Pataz | EM3: Paucar del Sara Sara | EN3: Paucartambo | EO3: Picota | EP3: Pisco | EQ3: Piura_ | ER3: Pomabamba | ES3: Callao | ET3: Puerto Inca | EU3: Puno_ | EV3: Purús | EW3: Putumayo | EX3: Quispicanchi | EY3: Recuay | EZ3: Requena | FA3: Rioja | FB3: Rodríguez de Mendoza | FC3: San Antonio de Putina | FD3: San Ignacio | FE3: San Marcos | FF3: San Martín_ | FG3: San Miguel | FH3: San Pablo | FI3: San Román | FJ3: Sánchez Carrión | FK3: Sandia | FL3: Santa | FM3: Santa Cruz | FN3: Santiago de Chuco | FO3: Satipo | FP3: Sechura | FQ3: Sihuas | FR3: Sucre | FS3: Sullana | FT3: Tacna_ | FU3: Tahuamanu | FV3: Talara | FW3: Tambopata | FX3: Tarata | FY3: Tarma | FZ3: Tayacaja | GA3: Tocache | GB3: Trujillo | GC3: Tumbes_ | GD3: _Ucayali | GE3: Urubamba | GF3: Utcubamba | GG3: Víctor Fajardo | GH3: Vilcas Huamán | GI3: Virú | GJ3: Yarowilca | GK3: Yauli | GL3: Yauyos | GM3: Yungay | GN3: Yunguyo | GO3: Zarumilla
B4: _Abancay | C4: _Acobamba | D4: _Acomayo | E4: _Aija | F4: Balsapuerto | G4: _Ambo | H4: _Andahuaylas | I4: Anchonga | J4: Ancahuasi | K4: _Antabamba | L4: Aczo | M4: Alto Selva Alegre | N4: _Ascope | O4: Acochaca | P4: Raymondi | Q4: _Ayabaca | R4: Capaya | S4: Achaya | T4: Aramango | U4: _Barranca | V4: Alto Biavo | W4: Bambamarca | X4: Abelardo Pardo Lezameta | Y4: Chisquilla | Z4: Cachachi | AA4: Asunción | AB4: _Cajatambo | AC4: _Calca | AD4: _Camaná | AE4: Checca | AF4: Checacupe | AG4: Cairani | AH4: _Cangallo | AI4: Arahuay | AJ4: Asia | AK4: Ajoyani | AL4: Acarí | AM4: Acopampa | AN4: San Luis | AO4: Buena Vista Alta | AP4: Andagua | AQ4: Arma | AR4: Achoma | AS4: Celendin | AT4: Asunción | AU4: _Chanchamayo | AV4: _Chepen | AW4: Cayalti | AX4: Alto Laran | AY4: Anco Huallo | AZ4: Anguia | BA4: Desaguadero | BB4: Capacmarca | BC4: Ahuac | BD4: Anco | BE4: Aco | BF4: Andaray | BG4: El Cenepa | BH4: Canoas de Punta Sal | BI4: Chilete | BJ4: Calleria | BK4: Aco | BL4: Challhuahuacho | BM4: Ccorca | BN4: Callayuc | BO4: Chacayan | BP4: Andoas | BQ4: Chuquis | BR4: Capazo | BS4: Agua Blanca | BT4: Alto Pichigua | BU4: Cañaris | BV4: Chojata | BW4: Cascas | BX4: Chuquibambilla | BY4: Canchabamba | BZ4: Bambamarca | CA4: Alto Saposoa | CB4: Arancay | CC4: Acocro | CD4: Carapo | CE4: Canchaque | CF4: Cojata | CG4: Acobambilla | CH4: Carhuacallanga | CI4: Ayahuanco | CJ4: Amarilis | CK4: Atavillos Alto | CL4: Cochabamba | CM4: Anra | CN4: Cochapeti | CO4: Antioquia | CP4: Ambar | CQ4: Caraz | CR4: Ayavi | CS4: Ica | CT4: El Algarrobal | CU4: Cocachacra | CV4: Bellavista | CW4: Acolla | CX4: Ilabaya | CY4: Calamarca | CZ4: Carhuamayo | DA4: Echarate | DB4: Anchihuay | DC4: Alca | DD4: Alonso de Alvarado | DE4: Chochope | DF4: Cabanilla | DG4: Baños | DH4: Daniel Alomía Robles | DI4: Ancón | DJ4: Nauta | DK4: Aucara | DL4: Camporredondo | DM4: Fitzcarrald | DN4: Cholon | DO4: Campanilla | DP4: Casca | DQ4: Carumas | DR4: Pebas | DS4: Alto Nanay | DT4: Antauta | DU4: Conima | DV4: Buenos Aires | DW4: Calzada | DX4: Changuillo | DY4: Acas | DZ4: Agallpampa | EA4: Chontabamba | EB4: Andajes | EC4: Guadalupe | ED4: Chaglla | EE4: Alexander Von Humboldt | EF4: Amotape | EG4: Bolognesi | EH4: Llipata | EI4: Chumpi | EJ4: Accha | EK4: Chaupimarca | EL4: Buldibuyo | EM4: Colta | EN4: Caicay | EO4: Buenos Aires | EP4: Huancano | EQ4: Atacaos | ER4: Huayllan | ES4: Bellavista | ET4: Codo del Pozuzo | EU4: Acora | EV4: _Purus | EW4: _Putumayo | EX4: Andahuaylillas | EY4: Catac | EZ4: Alto Tapiche | FA4: Awajun | FB4: Chirimoto | FC4: Ananea | FD4: Chirinos | FE4: Chancay | FF4: Alberto Leveau | FG4: Bolívar | FH4: San Bernardino | FI4: Cabana | FJ4: Chugay | FK4: Alto Inambari | FL4: Cáceres del Perú | FM4: Andabamba_ | FN4: Angasmarca | FO4: Coviriali | FP4: Bellavista de la Unión | FQ4: Acobamba | FR4: Belén | FS4: Bellavista | FT4: Alto de la Alianza | FU4: Iberia | FV4: El Alto | FW4: Inambari | FX4: Estique | FY4: Acobamba | FZ4: Acostambo | GA4: Nuevo Progreso | GB4: El Porvenir | GC4: Corrales | GD4: Contamana | GE4: Chinchero | GF4: Bagua Grande | GG4: Alcamenca | GH4: Accomarca | GI4: Chao | GJ4: Aparicio Pomares | GK4: Chacapalpa | GL4: Alis | GM4: Yanama | GN4: Anapia | GO4: Aguas Verdes
B5: Chacoche | C5: Andabamba | D5: Acopia | E5: Coris | F5: Jeberos | G5: Cayna | H5: Andarapa | I5: Callanmarca | J5: _Anta | K5: El Oro | L5: Chaccho | M5: _Arequipa | N5: Casa Grande | O5: Chacas | P5: Sepahua | Q5: Frias | R5: Caraybamba | S5: Arapa | T5: _Bagua | U5: Paramonga | V5: Bajo Biavo | W5: _Bolívar | X5: Antonio Raymondi | Y5: Churuja | Z5: _Cajabamba | AA5: Cajamarca | AB5: Copa | AC5: Coya | AD5: José María Quimper | AE5: Kunturkanki | AF5: Combapata | AG5: Camilaca | AH5: Chuschi | AI5: _Canta | AJ5: Calango | AK5: Ayapata | AL5: Atico | AM5: Amashca | AN5: San Nicolás | AO5: _Casma | AP5: Aplao | AQ5: Aurahua | AR5: Cabanaconde | AS5: Chumuch | AT5: Balsas | AU5: Perene | AV5: Pacanga | AW5: _Chiclayo | AX5: Chavin | AY5: _Chincheros | AZ5: Chadin | BA5: Huacullani | BB5: Chamaca | BC5: Chongos Bajo | BD5: Chinchihuasi | BE5: Andamarca | BF5: Cayarani | BG5: Nieva | BH5: Casitas | BI5: Contumaza | BJ5: Campoverde | BK5: Bambas | BL5: _Cotabambas | BM5: Cusco | BN5: Choros | BO5: Goyllarisquizga | BP5: Barranca | BQ5: La Unión | BR5: Conduriri | BS5: San José de Sisa | BT5: Condoroma | BU5: _Ferreñafe | BV5: Coalaque | BW5: Lucma | BX5: Curasco | BY5: Cochabamba | BZ5: Chugur | CA5: El Eslabón | CB5: Chavín de Pariarca | CC5: Acos Vinchos | CD5: Sacsamarca | CE5: El Carmen de la Frontera | CF5: Huancane | CG5: Acoria | CH5: Chacapampa | CI5: Canayre | CJ5: Chinchao | CK5: Atavillos Bajo | CL5: Colcabamba | CM5: Cajay | CN5: Culebras | CO5: Callahuanca | CP5: Caleta de Carquin | CQ5: Huallanca | CR5: Córdova | CS5: La Tinguiña | CT5: Ilo | CU5: Dean Valdivia | CV5: Chontali | CW5: Apata | CX5: Ite | CY5: Carabamba | CZ5: Junin | DA5: Huayopata | DB5: Anco | DC5: Charcana | DD5: Barranquita | DE5: Illimo | DF5: Calapuja | DG5: Jesús | DH5: Hermílio Valdizan | DI5: Ate | DJ5: Parinari | DK5: Cabana | DL5: Cocabamba | DM5: Huepetuhe | DN5: Huacrachuco | DO5: Huicungo | DP5: Eleazar Guzmán Barron | DQ5: Cuchumbaya | DR5: Ramón Castilla | DS5: Belén | DT5: Ayaviri | DU5: Huayrapata | DV5: Chalaco | DW5: Habana | DX5: El Ingenio | DY5: Cajamarquilla | DZ5: Charat | EA5: Constitución | EB5: Caujul | EC5: Jequetepeque | ED5: Molino | EE5: Curimana | EF5: Arenal | EG5: Cabana | EH5: _Palpa | EI5: Coracora | EJ5: Ccapi | EK5: Huachon | EL5: Chillia | EM5: Corculla | EN5: Challabamba | EO5: Caspisapa | EP5: Humay | EQ5: Castilla | ER5: Parobamba | ES5: Callao | ET5: Honoria | EU5: Amantani | EW5: Rosa Panduro | EX5: Camanti | EY5: Cotaparaco | EZ5: Capelo | FA5: Elías Soplin Vargas | FB5: Cochamal | FC5: Pedro Vilca Apaza | FD5: Huarango | FE5: Eduardo Villanueva | FF5: Cacatachi | FG5: Calquis | FH5: San Luis | FI5: Cabanillas | FJ5: Cochorco | FK5: Cuyocuyo | FL5: Chimbote | FM5: Catache | FN5: Cachicadan | FO5: Llaylla | FP5: Bernal | FQ5: Alfonso Ugarte | FR5: Chalcos | FS5: Ignacio Escudero | FT5: Calana | FU5: Iñapari | FV5: La Brea | FW5: Laberinto | FX5: Estique-Pampa | FY5: Huaricolca | FZ5: Acraquia | GA5: Polvora | GB5: Florencia de Mora | GC5: La Cruz | GD5: Inahuaya | GE5: Huayllabamba | GF5: Cajaruro | GG5: Apongo | GH5: Carhuanca | GI5: Guadalupito | GJ5: Cahuac | GK5: Huay-Huay | GL5: Allauca | GM5: Cascapara | GN5: Copani | GO5: Matapalo
B6: Circa | C6: Anta | D6: Acos | E6: Huacllan | F6: Lagunas | G6: Colpas | H6: Chiara | I6: Ccochaccasa | J6: Cachimayo | K6: Huaquirca | L6: Chingas | M6: Cayma | N6: Chicama | P6: Tahuania | Q6: Jilili | R6: Chalhuanca | S6: Asillo | T6: Copallin | U6: Pativilca | V6: _Bellavista | W6: Condormarca | X6: Aquia | Y6: Corosha | Z6: Condebamba | AA6: Chetilla | AB6: Gorgor | AC6: Lamay | AD6: Mariano Nicolás Valcárcel | AE6: Langui | AF6: Marangani | AG6: _Candarave | AH6: Los Morochucos | AI6: Huamantanga | AJ6: Cerro Azul | AK6: Coasa | AL6: Atiquipa | AM6: Anta | AN6: Yauya | AO6: Comandante Noel | AP6: Ayo | AQ6: Capillas | AR6: Callalli | AS6: Cortegana | AT6: _Chachapoyas | AU6: Pichanaqui | AV6: Pueblo Nuevo | AW6: Chongoyape | AX6: Chincha Alta | AY6: Cocharcas | AZ6: Chalamarca | BA6: Juli | BB6: Colquemarca | BC6: _Chupaca | BD6: _Churcampa | BE6: Chambara | BF6: Chichas | BG6: Río Santiago | BH6: Zorritos | BI6: Cupisnique | BJ6: Iparia | BK6: _Corongo | BL6: Coyllurqui | BM6: Poroy | BN6: Cujillo | BO6: Paucar | BP6: Cahuapanas | BQ6: Marías | BR6: Ilave | BS6: San Martín | BT6: Coporaque | BU6: Incahuasi | BV6: Ichuña | BW6: Marmot | BX6: Curpahuasi | BY6: _Huacaybamba | BZ6: _Hualgayoc | CA6: Piscoyacu | CB6: Jacas Grande | CC6: Andrés Avelino Cáceres Dorregaray | CD6: Sancos | CE6: _Huancabamba | CF6: Huatasani | CG6: Ascensión | CH6: Chicche | CI6: Huamanguilla | CJ6: Churubamba | CK6: Aucallama | CL6: Huanchay | CM6: Chavin de Huantar | CN6: _Huarmey | CO6: Carampoma | CP6: Checras | CQ6: Huata | CR6: Huayacundo Arma | CS6: Los Aquijes | CT6: Pacocha | CU6: _Islay | CV6: Colasay | CW6: Ataura | CX6: Locumba | CY6: Huaso | CZ6: Ondores | DA6: Inkawasi | DB6: Ayna | DC6: Cotahuasi | DD6: Caynarachi | DE6: Jayanca | DF6: _Lampa | DG6: Jivia | DH6: José Crespo y Castillo | DI6: Barranco | DJ6: Tigre | DK6: Carmen Salcedo | DL6: Colcamar | DM6: Madre de Dios | DN6: San Buenaventura | DO6: Juanjuí | DP6: Fidel Olivas Escudero | DQ6: Moquegua | DR6: San Pablo | DS6: Fernando Lores | DT6: Cupi | DU6: _Moho | DV6: Chulucanas | DW6: Jepelacio | DX6: Marcona | DY6: Carhuapampa | DZ6: Huaranchal | EA6: Huancabamba | EB6: Cochamarca | EC6: _Pacasmayo | ED6: Panao | EE6: Irazola | EF6: Colan | EG6: Conchucos | EH6: Río Grande | EI6: Coronel Castañeda | EJ6: Colcha | EK6: Huariaca | EL6: Huancaspata | EM6: Lampa | EN6: Colquepata | EO6: Picota | EP6: Independencia | EQ6: Cura Mori | ER6: _Pomabamba | ES6: Carmen de la Legua Reynoso | ET6: _Puerto Inca | EU6: Atuncolla | EW6: Teniente Manuel Clavero | EX6: Ccarhuayo | EY6: Huayllapampa | EZ6: Emilio San Martín | FA6: Nueva Cajamarca | FB6: Huambo | FC6: Putina | FD6: La Coipa | FE6: Gregorio Pita | FF6: Chazuta | FG6: Catilluc | FH6: _San Pablo | FI6: Caracoto | FJ6: Curgos | FK6: Limbani | FL6: Coishco | FM6: Chancaybaños | FN6: Mollebamba | FO6: Mazamari | FP6: Cristo Nos Valga | FQ6: Cashapampa | FR6: Chilcayoc | FS6: Lancones | FT6: Ciudad Nueva | FU6: _Tahuamanu | FV6: Lobitos | FW6: Las Piedras | FX6: Héroes Albarracín | FY6: Huasahuasi | FZ6: Ahuaycha | GA6: Shunte | GB6: Huanchaco | GC6: Pampas de Hospital | GD6: Padre Márquez | GE6: Machupicchu | GF6: Cumba | GG6: Asquipata | GH6: Concepción | GI6: _Viru | GJ6: Chacabamba | GK6: La Oroya | GL6: Ayaviri | GM6: Mancos | GN6: Cuturapi | GO6: Papayal
B7: Curahuasi | C7: Caja | D7: Mosoc Llacta | E7: La Merced | F7: Santa Cruz | G7: Conchamarca | H7: Huancarama | I7: Chincho | J7: Chinchaypujio | K7: Juan Espinoza Medrano | L7: Llamellin | M7: Cerro Colorado | N7: Chocope | P7: Yurua | Q7: Lagunas | R7: Chapimarca | S7: Azangaro | T7: El Parco | U7: Supe | V7: Huallaga | W7: Longotea | X7: Cajacay | Y7: Cuispes | Z7: Sitacocha | AA7: Cospan | AB7: Huancapon | AC7: Lares | AD7: Mariscal Cáceres | AE7: Layo | AF7: Pitumarca | AG7: Curibaya | AH7: María Parado de Bellido | AI7: Huaros | AJ7: Chilca | AK7: Corani | AL7: Bella Unión | AM7: Ataquero | AO7: Yautan | AP7: Chachas | AQ7: _Castrovirreyna | AR7: _Caylloma | AS7: Huasmin | AT7: Cheto | AU7: San Luis de Shuaro | AW7: Eten | AX7: Chincha Baja | AY7: Huaccana | AZ7: Chiguirip | BA7: Kelluyo | BB7: Livitaca | BC7: Huachac | BD7: Cosme | BE7: Cochas | BF7: Chuquibamba | BI7: Guzmango | BJ7: Manantay | BK7: Cusca | BL7: Haquira | BM7: San Jerónimo | BN7: _Cutervo | BO7: San Pedro de Pillao | BP7: Manseriche | BQ7: Pachas | BR7: Pilcuyo | BS7: Santa Rosa | BT7: _Espinar | BU7: Manuel Antonio Mesones Muro | BV7: La Capilla | BW7: Sayapullo | BX7: Gamarra | BY7: Pinra | CA7: Sacanche | CB7: Jircan | CC7: Ayacucho | CD7: Santiago de Lucanamarca | CE7: Huarmaca | CF7: Inchupalla | CG7: Conayca | CH7: Chilca | CI7: _Huanta | CJ7: Huanuco | CK7: Chancay | CL7: _Huaraz | CM7: Huacachi | CN7: Huayan | CO7: Chicla | CP7: Huacho | CQ7: _Huaylas | CR7: _Huaytara | CS7: Ocucaje | CU7: Mejia | CV7: Huabal | CW7: Canchayllo | CY7: Julcan | CZ7: Ulcumayo | DA7: Kimbiri | DB7: Chilcas | DC7: Huaynacotas | DD7: Cuñumbuqui | DE7: _Lambayeque | DF7: Nicasio | DG7: Queropalca | DH7: Luyando | DI7: Breña | DJ7: Trompeteros | DK7: Chaviña | DL7: Conila | DM7: _Manu | DO7: Pachiza | DP7: Llama | DQ7: Samegua | DR7: Yavari | DS7: Indiana | DT7: Llalli | DU7: Tilali | DV7: La Matanza | DW7: _Moyobamba | DX7: Nasca | DY7: Cochas | DZ7: La Cuesta | EA7: _Oxapampa | EB7: Navan | EC7: San José | ED7: Umari | EE7: Neshuya | EF7: La Huaca | EG7: Huacaschuque | EH7: Santa Cruz | EI7: Pacapausa | EJ7: Huanoquite | EK7: Huayllay | EL7: Huaylillas | EM7: Marcabamba | EN7: Huancarani | EO7: Pilluana | EP7: Paracas | EQ7: El Tallan | ER7: Quinuabamba | ES7: La Perla | ET7: Tournavista | EU7: Capachica | EW7: Yaguas | EX7: Ccatca | EY7: Llacllin | EZ7: Jenaro Herrera | FA7: Pardo Miguel | FB7: Limabamba | FC7: Quilcapuncu | FD7: Namballe | FE7: Ichocan | FF7: Chipurana | FG7: El Prado | FH7: Tumbaden | FI7: Juliaca | FJ7: Huamachuco | FK7: Patambuco | FL7: Macate | FM7: La Esperanza | FN7: Mollepata | FO7: Pampa Hermosa | FP7: Rinconada Llicuar | FQ7: Chingalpo | FR7: Huacaña | FS7: Marcavelica | FT7: Coronel Gregorio Albarracín Lanchipa | FV7: Los Organos | FW7: _Tambopata | FX7: Sitajara | FY7: La Unión | FZ7: Andaymarca | GA7: _Tocache | GB7: La Esperanza | GC7: San Jacinto | GD7: Pampa Hermosa | GE7: Maras | GF7: El Milagro | GG7: Canaria | GH7: Huambalpa | GJ7: Chavinillo | GK7: Marcapomacocha | GL7: Azángaro | GM7: Matacoto | GN7: Ollaraya | GO7: _Zarumilla
B8: Huanipaca | C8: Marcas | D8: Pomacanchi | E8: Succha | F8: Teniente Cesar López Rojas | G8: Huacar | H8: Huancaray | I8: Congalla | J8: Huarocondo | K8: Oropesa | L8: Mirgas | M8: Characato | N8: Magdalena de Cao | Q8: Montero | R8: Colcabamba | S8: Caminaca | T8: Imaza | U8: Supe Puerto | V8: San Pablo | W8: Uchumarca | X8: Canis | Y8: Florida | AA8: Encañada | AB8: Manas | AC8: Pisac | AD8: Nicolás de Pierola | AE8: Pampamarca | AF8: San Pablo | AG8: Huanuara | AH8: Paras | AI8: Lachaqui | AJ8: Coayllo | AK8: Crucero | AL8: Cahuacho | AM8: Carhuaz | AP8: Chilcaymarca | AQ8: Chupamarca | AR8: Chivay | AS8: Jorge Chávez | AT8: Chiliquin | AU8: San Ramón | AW8: Eten Puerto | AX8: El Carmen | AY8: Ocobamba | AZ8: Chimban | BA8: Pisacoma | BB8: Llusco | BC8: Huamancaca Chico | BD8: El Carmen | BE8: Comas | BF8: Iray | BI8: San Benito | BJ8: Masisea | BK8: La Pampa | BL8: Mara | BM8: San Sebastian | BN8: La Ramada | BO8: Santa Ana de Tusi | BP8: Morona | BQ8: Quivilla | BR8: Santa Rosa | BS8: Shatoja | BT8: Ocoruro | BU8: Pitipo | BV8: Lloque | BX8: Huayllati | CA8: Saposoa | CB8: Llata | CC8: Carmen Alto | CE8: Lalaquiz | CF8: Pusi | CG8: Cuenca | CH8: Chongos Alto | CI8: Iguain | CJ8: Margos | CK8: _Huaral | CL8: Independencia | CM8: Huacchis | CN8: Malvas | CO8: Cuenca | CP8: Hualmay | CQ8: Mato | CR8: Laramarca | CS8: Pachacutec | CU8: Mollendo | CV8: _Jaén | CW8: Curicaca | DA8: Maranura | DB8: Chungui | DC8: Pampamarca | DD8: _Lamas | DE8: Mochumi | DF8: Ocuviri | DG8: Rondos | DH8: Mariano Damaso Beraun | DI8: Carabayllo | DJ8: Urarinas | DK8: Chipao | DL8: Inguilpata | DO8: Pajarillo | DP8: Llumpa | DQ8: San Cristóbal | DS8: Iquitos | DT8: Macari | DV8: _Morropon | DW8: Soritor | DX8: Vista Alegre | DY8: Congas | DZ8: Mache | EA8: Palcazu | EB8: _Oyon | EC8: San Pedro de Lloc | EE8: Padre Abad | EF8: _Paita | EG8: Huandoval | EH8: Tibillo | EI8: Pullo | EJ8: Omacha | EK8: Ninacaca | EL8: Huayo | EM8: Oyolo | EN8: Kosñipata | EO8: Pucacaca | EP8: _Pisco | EQ8: La Arena | ES8: La Punta | ET8: Yuyapichis | EU8: Chucuito | EX8: Cusipata | EY8: Marca | EZ8: Maquia | FA8: Posic | FB8: Longar | FC8: Sina | FD8: _San Ignacio | FE8: José Manuel Quiroz | FF8: El Porvenir | FG8: La Florida | FJ8: Marcabal | FK8: Phara | FL8: Moro | FM8: Ninabamba | FN8: Quiruvilca | FO8: Pangoa | FP8: _Sechura | FQ8: Huayllabamba | FR8: Morcolla | FS8: Miguel Checa | FT8: Inclan | FV8: Mancora | FX8: Susapaya | FY8: Palca | FZ8: Colcabamba | GA8: Uchiza | GB8: Laredo | GC8: San Juan de la Virgen | GD8: Sarayacu | GE8: Ollantaytambo | GF8: Jamalca | GG8: Cayara | GH8: Independencia | GJ8: Choras | GK8: Morococha | GL8: Cacra | GM8: Quillo | GN8: Tinicachi
B9: Lambrama | C9: Paucara | D9: Rondocan | E9: La Merced | F9: Yurimaguas | G9: San Francisco | H9: Huayana | I9: Huanca-Huanca | J9: Limatambo | K9: Pachaconas | L9: San Juan de Rontoy | M9: Chiguata | N9: Paijan | Q9: Pacaipampa | R9: Cotaruse | S9: Chupa | T9: La Peca | V9: San Rafael | W9: Ucuncha | X9: Chiquian | Y9: Jazan | AA9: Jesús | AC9: San Salvador | AD9: Ocoña | AE9: Quehue | AF9: San Pedro | AG9: Quilahuani | AH9: Totos | AI9: San Buenaventura | AJ9: Imperial | AK9: Ituata | AL9: _Caravelí | AM9: Marcara | AP9: Choco | AQ9: Cocas | AR9: Coporaque | AS9: José Gálvez | AT9: Chuquibamba | AU9: Vitoc | AW9: José Leonardo Ortiz | AX9: Grocio Prado | AY9: Ongoy | AZ9: Choropampa | BA9: Pomata | BB9: Quiñota | BC9: San Juan de Iscos | BD9: La Merced | BE9: _Concepción | BF9: Río Grande | BI9: Santa Cruz de Toledo | BJ9: Nueva Requena | BK9: Yanac | BL9: Tambobamba | BM9: Santiago | BN9: Pimpingos | BO9: Tapuc | BP9: Pastaza | BQ9: Ripan | BT9: Pallpata | BU9: Pueblo Nuevo | BV9: Matalaque | BX9: Mamara | CA9: Tingo de Saposoa | CB9: Miraflores | CC9: Chiara | CE9: San Miguel de El Faique | CF9: Rosaspata | CG9: Huachocolpa | CH9: Chupuro | CI9: Llochegua | CJ9: Pillco Marca | CK9: Ihuari | CL9: Jangas | CM9: Huachis | CO9: Huachupampa | CP9: _Huaura | CQ9: Pamparomas | CR9: Ocoyo | CS9: Parcona | CU9: Punta de Bombón | CV9: Las Pirias | CW9: El Mantaro | DA9: Ocobamba | DB9: Luis Carranza | DC9: Puyca | DD9: Pinto Recodo | DE9: Morrope | DF9: Palca | DG9: San Francisco de Asís | DH9: Rupa-Rupa | DI9: Chaclacayo | DK9: Huac-Huas | DL9: Lamud | DP9: Lucma | DQ9: Torata | DS9: Las Amazonas | DT9: Nuñoa | DV9: Salitral | DW9: Yantalo | DY9: Llipa | DZ9: _Otuzco | EA9: Pozuzo | EB9: Pachangara | EF9: Tamarindo | EG9: Lacabamba | EI9: Puyusca | EJ9: Paccaritambo | EK9: Pallanchacra | EL9: Ongon | EM9: Pararca | EN9: _Paucartambo | EO9: San Cristóbal | EP9: San Andrés | EQ9: La Unión | ES9: Mi Perú | EU9: Coata | EX9: Huaro | EY9: Pampas Chico | EZ9: Puinahua | FA9: _Rioja | FB9: Mariscal Benavides | FD9: San José de Lourdes | FE9: José Sabogal | FF9: Huimbayoc | FG9: Llapa | FJ9: Sanagoran | FK9: Quiaca | FL9: Nepeña | FM9: Pulan | FN9: Santa Cruz de Chuca | FO9: Río Negro | FP9: Vice | FQ9: Quiches | FR9: Paico | FS9: Querecotillo | FT9: Pachia | FV9: Pariñas | FX9: _Tarata | FY9: Palcamayo | FZ9: Daniel Hernández | GB9: Moche | GC9: _Tumbes | GD9: Vargas Guerra | GE9: _Urubamba | GF9: Lonya Grande | GG9: Colca | GH9: Saurama | GJ9: Jacas Chico | GK9: Paccha | GL9: Carania | GM9: Ranrahirca | GN9: Unicachi
B10: Pichirhua | C10: Pomacocha | D10: Sangarara | G10: San Rafael | H10: José María Arguedas | I10: Huayllay Grande | J10: Mollepata | K10: Sabaino | M10: Jacobo Hunter | N10: Rázuri | Q10: Paimas | R10: Huayllo | S10: José Domingo Choquehuanca | X10: Colquioc | Y10: Jumbilla | AA10: Llacanora | AC10: Taray | AD10: Quilca | AE10: Tupac Amaru | AF10: Sicuani | AI10: Santa Rosa de Quives | AJ10: Lunahuana | AK10: Macusani | AL10: Chala | AM10: Pariahuanca | AP10: Huancarqui | AQ10: Huachos | AR10: Huambo | AS10: La Libertad de Pallan | AT10: Granada | AW10: La Victoria | AX10: Pueblo Nuevo | AY10: Ranracancha | AZ10: _Chota | BA10: Zepita | BB10: Santo Tomas | BC10: San Juan de Jarpa | BD10: Locroja | BE10: Heroínas Toledo | BF10: Salamanca | BI10: Tantarica | BJ10: Yarinacocha | BK10: Yupan | BM10: Saylla | BN10: Querocotillo | BO10: Vilcabamba | BQ10: Shunqui | BT10: Pichigua | BV10: Omate | BX10: Micaela Bastidas | CB10: Monzón | CC10: Jesús Nazareno | CE10: Sondor | CF10: Taraco | CG10: _Huancavelica | CH10: Colca | CI10: Luricocha | CJ10: Quisqui (Kichki) | CK10: Lampian | CL10: La Libertad | CM10: Huantar | CO10: Huanza | CP10: Leoncio Prado | CQ10: Pueblo Libre | CR10: Pilpichaca | CS10: Pueblo Nuevo | CV10: Pomahuaca | CW10: Huamali | DA10: Pichari | DB10: Samugari | DC10: Quechualla | DD10: Rumisapa | DE10: Motupe | DF10: Paratia | DG10: San Miguel de Cauri | DI10: Chorrillos | DK10: Laramate | DL10: Longuita | DP10: Musga | DS10: Mazan | DT10: Orurillo | DV10: San Juan de Bigote | DY10: _Ocros | DZ10: Paranday | EA10: Puerto Bermúdez | EF10: Vichayal | EG10: Llapo | EI10: San Francisco de Ravacayco | EJ10: _Paruro | EK10: Paucartambo | EL10: Parcoy | EM10: Pausa | EO10: San Hilarión | EP10: San Clemente | EQ10: Las Lomas | ES10: Ventanilla | EU10: Huata | EX10: Lucre | EY10: Pararin | EZ10: _Requena | FA10: San Fernando | FB10: Milpuc | FD10: Tabaconas | FE10: Pedro Gálvez | FF10: Juan Guerra | FG10: Nanchoc | FJ10: Sarin | FK10: San Juan del Oro | FL10: Nuevo Chimbote | FM10: _Santa Cruz | FN10: _Santiago de Chuco | FO10: Río Tambo | FQ10: Ragash | FR10: Querobamba | FS10: Salitral | FT10: Palca | FX10: Tarucachi | FY10: San Pedro de Cajas | FZ10: Huachocolpa | GB10: Poroto | GE10: Yucay | GF10: Yamon | GG10: Huamanquiquia | GH10: _Vilcas Huamán | GJ10: Obas | GK10: Santa Bárbara de Carhuacayan | GL10: Catahuasi | GM10: Shupluy | GN10: _Yunguyo
B11: San Pedro de Cachora | C11: Rosario | G11: Tomay Kichwa | H11: Kaquiabamba | I11: Julcamarca | J11: Pucyura | M11: José Luis Bustamante Y Rivero | N11: Santiago de Cao | Q11: Sapillica | R11: Justo Apu Sahuaraura | S11: Muñani | X11: Huallanca | Y11: Recta | AA11: Los Baños del Inca | AC11: Yanatile | AD11: Samuel Pastor | AE11: Yanaoca | AF11: Tinta | AJ11: Mala | AK11: Ollachea | AL11: Chaparra | AM11: San Miguel de Aco | AP11: Machaguay | AQ11: Huamatambo | AR11: Huanca | AS11: Miguel Iglesias | AT11: Huancas | AW11: Lagunas | AX11: San Juan de Yanac | AY11: Uranmarca | AZ11: Cochabamba | BB11: Velille | BC11: Tres de Diciembre | BD11: Pachamarca | BE11: Manzanares | BF11: Yanaquihua | BI11: Yonan | BM11: Wanchaq | BN11: San Andrés de Cutervo | BO11: Yanahuanca | BQ11: Sillapata | BT11: Suyckutambo | BV11: Puquina | BX11: Pataypampa | CB11: Punchao | CC11: Ocros | CE11: Sondorillo | CF11: Vilque Chico | CG11: Huando | CH11: Cullhuas | CI11: Pucacolpa | CJ11: San Francisco de Cayran | CK11: Pacaraos | CL11: Olleros | CM11: _Huari | CO11: _Huarochiri | CP11: Paccho | CQ11: Santa Cruz | CR11: Querco | CS11: Salas | CV11: Pucara | CW11: Huaripampa | DA11: Quellouno | DB11: San Miguel | DC11: Sayla | DD11: San Roque de Cumbaza | DE11: Olmos | DF11: Pucara | DI11: Cieneguilla | DK11: Leoncio Prado | DL11: Lonya Chico | DP11: Piscobamba | DS11: Napo | DT11: Santa Rosa | DV11: Santa Catalina de Mossa | DY11: San Cristóbal de Rajan | DZ11: Salpo | EA11: Villa Rica | EG11: _Pallasca | EI11: Upahuacho | EJ11: Pillpinto | EK11: San Francisco de Asís de Yarusyacan | EL11: _Pataz | EM11: San Javier de Alpabamba | EO11: Shamboyacu | EP11: Tupac Amaru Inca | EQ11: _Piura | EU11: Mañazo | EX11: Marcapata | EY11: _Recuay | EZ11: Saquena | FA11: Yorongos | FB11: Omia | FF11: La Banda de Shilcayo | FG11: Niepos | FJ11: Sartimbamba | FK11: San Pedro de Putina Punco | FL11: Samanco | FM11: Saucepampa | FN11: Sitabamba | FO11: _Satipo | FQ11: San Juan | FR11: San Pedro de Larcay | FS11: _Sullana | FT11: Pocollay | FX11: Ticaco | FY11: Tapo | FZ11: Huaribamba | GB11: Salaverry | GG11: Huancapi | GH11: Vischongo | GJ11: Pampamarca | GK11: Santa Rosa de Sacco | GL11: Chocos | GM11: _Yungay
B12: Tamburco | H12: Kishuara | I12: Lircay | J12: Zurite | M12: La Joya | Q12: Sicchez | R12: Lucre | S12: Potoni | X12: Huasta | Y12: San Carlos | AA12: Magdalena | AJ12: Nuevo Imperial | AK12: San Gaban | AL12: Huanuhuanu | AM12: Shilla | AP12: Orcopampa | AQ12: Mollepampa | AR12: Ichupampa | AS12: Oxamarca | AT12: La Jalca | AW12: Monsefu | AX12: San Pedro de Huacarpana | AZ12: Conchan | BC12: Yanacancha | BD12: Paucarbamba | BE12: Mariscal Castilla | BN12: San Juan de Cutervo | BQ12: Yanas | BV12: Quinistaquillas | BX12: Progreso | CB12: Puños | CC12: Pacaycasa | CG12: Huayllahuara | CH12: El Tambo | CI12: Santillana | CJ12: San Pedro de Chaulan | CK12: San Miguel de Acos | CL12: Pampas Grande | CM12: Masin | CO12: Lahuaytambo | CP12: Santa Leonor | CQ12: Santo Toribio | CR12: Quito-Arma | CS12: San José de Los Molinos | CV12: Sallique | CW12: Huertas | DA12: Santa Ana | DB12: Santa Rosa | DC12: Tauria | DD12: Shanao | DE12: Pacora | DF12: Santa Lucia | DI12: Comas | DK12: Llauta | DL12: _Luya | DS12: Punchana | DT12: Umachiri | DV12: Santo Domingo | DY12: San Pedro | DZ12: Sinsicap | EG12: Pampas | EJ12: Yaurisque | EK12: Simon Bolívar | EL12: Pias | EM12: San José de Ushua | EO12: Tingo de Ponasa | EQ12: Tambo Grande | EU12: Paucarcolla | EX12: Ocongate | EY12: Tapacocha | EZ12: Soplin | FA12: Yuracyacu | FB12: San Nicolás | FF12: Morales | FG12: San Gregorio | FK12: _Sandia | FL12: _Santa | FM12: Sexi | FO12: Vizcatan del Ene | FQ12: Sicsibamba | FR12: San Salvador de Quije | FT12: Sama | FY12: _Tarma | FZ12: Ñahuimpuquio | GB12: Simbal | GG12: Huancaraylla | GK12: Suitucancha | GL12: Cochas
H13: Pacobamba | I13: San Antonio de Antaparco | M13: Mariano Melgar | Q13: Suyo | R13: Pocohuanca | S13: Saman | X13: Huayllacayan | Y13: Shipasbamba | AA13: Matara | AJ13: Pacaran | AK13: Usicayos | AL13: Jaqui | AM13: Tinco | AP13: Pampacolca | AQ13: San Juan | AR13: Lari | AS13: Sorochuco | AT13: Leimebamba | AW13: Nueva Arica | AX13: Sunampe | AZ13: Huambos | BD13: San Miguel de Mayocc | BE13: Matahuasi | BN13: San Luis de Lucma | BV13: Ubinas | BX13: San Antonio | CB13: Singa | CC13: Quinua | CG13: Izcuchaca | CH13: Huacrapuquio | CI13: Sivia | CJ13: Santa María del Valle | CK13: Santa Cruz de Andamarca | CL13: Pariacoto | CM13: Paucas | CO13: Langa | CP13: Santa María | CQ13: Yuracmarca | CR13: San Antonio de Cusicancha | CS13: San Juan Bautista | CV13: San Felipe | CW13: Janjaillo | DA13: Santa Teresa | DB13: Tambo | DC13: Tomepampa | DD13: Tabalosos | DE13: Salas | DF13: Vilavila | DI13: El Agustino | DK13: _Lucanas | DL13: Luya Viejo | DS13: San Juan Bautista | DV13: Yamango | DY13: Santiago de Chilcas | DZ13: Usquil | EG13: Santa Rosa | EK13: Ticlacayan | EL13: Santiago de Challas | EM13: Sara Sara | EO13: Tres Unidos | EQ13: Veintiseis de Octubre | EU13: Pichacani | EX13: Oropesa | EY13: Ticapampa | EZ13: Tapiche | FB13: Santa Rosa | FF13: Papaplaya | FG13: _San Miguel | FK13: Yanahuaya | FM13: Uticyacu | FQ13: _Sihuas | FR13: Santiago de Paucaray | FT13: _Tacna | FZ13: Pampas | GB13: _Trujillo | GG13: Huaya | GK13: _Yauli | GL13: Colonia
H14: Pacucha | I14: Santo Tomas de Pata | M14: Miraflores | R14: San Juan de Chacña | S14: San Anton | X14: La Primavera | Y14: Valera | AA14: Namora | AJ14: Quilmana | AL14: Lomas | AM14: Yungar | AP14: Tipan | AQ14: Santa Ana | AR14: Lluta | AS14: Sucre | AT14: Levanto | AW14: Oyotun | AX14: Tambo de Mora | AZ14: Lajas | BD14: San Pedro de Coris | BE14: Mito | BN14: Santa Cruz | BV14: Yunga | BX14: Santa Rosa | CB14: Tantamayo | CC14: San José de Ticllas | CG14: Laria | CH14: Hualhuas | CI14: Uchuraccay | CJ14: Yacus | CK14: Sumbilca | CL14: Pira | CM14: Ponto | CO14: Laraos | CP14: Sayan | CR14: San Francisco de Sangayaico | CS14: Santiago | CV14: San José del Alto | CW14: _Jauja | DA14: Vilcabamba | DC14: Toro | DD14: Zapatero | DE14: San José | DI14: Independencia | DK14: Ocaña | DL14: María | DS14: Torres Causana | EG14: Tauca | EK14: Tinyahuarco | EL14: Taurija | EU14: Plateria | EX14: Quiquijana | EZ14: Yaquerana | FB14: Totora | FF14: San Antonio | FG14: San Silvestre de Cochan | FM14: Yauyucan | FR14: Soras | FZ14: Pazos | GB14: Victor Larco Herrera | GG14: Sarhua | GL14: Hongos
H15: Pampachiri | I15: Secclla | M15: Mollebaya | R15: Sañayca | S15: San José | X15: Mangas | Y15: Yambrasbamba | AA15: San Juan | AJ15: San Antonio | AL15: Quicacha | AP15: Uñon | AQ15: Tantara | AR15: Maca | AS15: Utco | AT15: Magdalena | AW15: Patapo | AZ15: Llama | BE15: Nueve de Julio | BN15: Santo Domingo de la Capilla | BX15: Turpay | CC15: San Juan Bautista | CG15: Manta | CH15: Huancan | CJ15: Yarumayo | CK15: Veintisiete de Noviembre | CL15: Tarica | CM15: Rahuapampa | CO15: Mariatana | CP15: Vegueta | CR15: San Isidro | CS15: Subtanjalla | CV15: Santa Rosa | CW15: Julcán | DA15: Villa Kintiarina | DE15: Tucume | DI15: Jesús María | DK15: Otoca | DL15: Ocalli | EK15: Vicco | EL15: Tayabamba | EU15: _Puno | EX15: Urcos | FB15: Vista Alegre | FF15: Sauce | FG15: Tongod | FZ15: Quichuas | GG15: Vilcanchos | GL15: Huampara
H16: Pomacocha | M16: Paucarpata | R16: Soraya | S16: San Juan de Salinas | X16: Pacllon | AJ16: San Luis | AL16: Yauca | AP16: Uraca | AQ16: Ticrapo | AR16: Madrigal | AT16: Mariscal Castilla | AW16: Picsi | AZ16: Miracosta | BE16: Orcotuna | BN16: Santo Tomas | BX16: Vilcabamba | CC16: Santiago de Pischa | CG16: Mariscal Cáceres | CH16: _Huancayo | CM16: Rapayan | CO16: Matucana | CR16: Santiago de Chocorvos | CS16: Tate | CW16: Leonor Ordóñez | DA16: Villa Virgen | DI16: La Molina | DK16: Puquio | DL16: Ocumal | EK16: Yanacancha | EL16: Urpay | EU16: San Antonio | FF16: Shapaja | FG16: Unión Agua Blanca | FZ16: Quishuar | GL16: Huancaya
H17: San Antonio de Cachi | M17: Pocsi | R17: Tapairihua | S17: Santiago de Pupuja | X17: San Miguel de Corpanqui | AJ17: San Vicente de Cañete | AP17: Viraco | AR17: Majes | AT17: Molinopampa | AW17: Pimentel | AZ17: Paccha | BE17: San José de Quero | BN17: Socota | BX17: Virundo | CC17: Socos | CG17: Moya | CH17: Huasicancha | CM17: San Marcos | CO17: Ricardo Palma | CR17: Santiago de Quirahuara | CS17: Yauca del Rosario | CW17: Llocllapampa | DI17: La Victoria | DK17: Saisa | DL17: Pisuquia | EU17: Tiquillaca | FF17: Tarapoto | FZ17: Salcabamba | GL17: Huangascar
H18: San Jerónimo | M18: Polobaya | R18: Tintay | S18: Tirapata | X18: Ticllos | AJ18: Santa Cruz de Flores | AR18: San Antonio de Chuca | AT18: Montevideo | AW18: Pomalca | AZ18: Pion | BE18: Santa Rosa de Ocopa | BN18: Toribio Casanova | CC18: Tambillo | CG18: Nuevo Occoro | CH18: Huayucachi | CM18: San Pedro de Chana | CO18: San Andrés de Tupicocha | CR18: Santo Domingo de Capillas | CW18: Marco | DI18: _Lima | DK18: San Cristóbal | DL18: Providencia | EU18: Vilque | FZ18: Salcahuasi | GL18: Huantan
H19: San Miguel de Chaccrampa | M19: Quequeña | R19: Toraya | AJ19: Zúñiga | AR19: Sibayo | AT19: Olleros | AW19: Pucala | AZ19: Querocoto | CC19: Vinchos | CG19: Palca | CH19: Ingenio | CM19: Uco | CO19: San Antonio | CR19: Tambo | CW19: Masma | DI19: Lince | DK19: San Juan | DL19: San Cristóbal | FZ19: San Marcos de Rocchac | GL19: Huañec
H20: Santa María de Chicmo | M20: Sabandia | R20: Yanaca | AR20: Tapay | AT20: Quinjalca | AW20: Reque | AZ20: San Juan de Licupis | CG20: Pilchaca | CH20: Pariahuanca | CO20: San Bartolomé | CW20: Masma Chicche | DI20: Los Olivos | DK20: San Pedro | DL20: San Francisco de Yeso | FZ20: Surcubamba | GL20: Laraos
H21: Talavera | M21: Sachaca | AR21: Tisco | AT21: San Francisco de Daguas | AW21: Santa Rosa | AZ21: Tacabamba | CG21: Vilca | CH21: Pilcomayo | CO21: San Damian | CW21: Molinos | DI21: Lurigancho | DK21: San Pedro de Palco | DL21: San Jerónimo | FZ21: Tintay Puncu | GL21: Lincha
H22: Tumay Huaraca | M22: San Juan de Siguas | AR22: Tuti | AT22: San Isidro de Maino | AW22: Saña | AZ22: Tocmoche | CG22: Yauli | CH22: Pucara | CO22: San Juan de Iris | CW22: Monobamba | DI22: Lurin | DK22: Sancos | DL22: San Juan de Lopecancha | GL22: Madean
H23: Turpo | M23: San Juan de Tarucani | AR23: Yanque | AT23: Soloco | AW23: Tuman | CH23: Quichuay | CO23: San Juan de Tantaranche | CW23: Muqui | DI23: Magdalena del Mar | DK23: Santa Ana de Huaycahuacho | DL23: Santa Catalina | GL23: Miraflores
M24: Santa Isabel de Siguas | AT24: Sonche | CH24: Quilcas | CO24: San Lorenzo de Quinti | CW24: Muquiyauyo | DI24: Miraflores | DK24: Santa Lucia | DL24: Santo Tomas | GL24: Omas
M25: Santa Rita de Siguas | CH25: San Agustín | CO25: San Mateo | CW25: Paca | DI25: Pachacamac | DL25: Tingo | GL25: Putinza
M26: Socabaya | CH26: San Jerónimo de Tunan | CO26: San Mateo de Otao | CW26: Paccha | DI26: Pucusana | DL26: Trita | GL26: Quinches
M27: Tiabaya | CH27: Santo Domingo de Acobamba | CO27: San Pedro de Casta | CW27: Pancan | DI27: Pueblo Libre | GL27: Quinocay
M28: Uchumayo | CH28: Saño | CO28: San Pedro de Huancayre | CW28: Parco | DI28: Puente Piedra | GL28: San Joaquín
M29: Vitor | CH29: Sapallanga | CO29: Sangallaya | CW29: Pomacancha | DI29: Punta Hermosa | GL29: San Pedro de Pilas
M30: Yanahuara | CH30: Sicaya | CO30: Santa Cruz de Cocachacra | CW30: Ricran | DI30: Punta Negra | GL30: Tanta
M31: Yarabamba | CH31: Viques | CO31: Santa Eulalia | CW31: San Lorenzo | DI31: Rímac | GL31: Tauripampa
M32: Yura | CO32: Santiago de Anchucaya | CW32: San Pedro de Chunan | DI32: San Bartolo | GL32: Tomas
CO33: Santiago de Tuna | CW33: Sausa | DI33: San Borja | GL33: Tupe
CO34: Santo Domingo de Los Olleros | CW34: Sincos | DI34: San Isidro | GL34: Viñac
CO35: Surco | CW35: Tunan Marca | DI35: San Juan de Lurigancho | GL35: Vitis
CW36: Yauli | DI36: San Juan de Miraflores | GL36: _Yauyos
CW37: Yauyos | DI37: San Luis
DI38: San Martín de Porres
DI39: San Miguel
DI40: Santa Anita
DI41: Santa María del Mar
DI42: Santa Rosa
DI43: Santiago de Surco
DI44: Surquillo
DI45: Villa El Salvador
DI46: Villa María del Triunfo

Sheet CONFIANZ (hidden)
C2: PREGUNTAS
B3: ENCUESTADOS | C3: P1 | D3: P2 | E3: P3 | F3: P4 | G3: P5 | H3: P6 | I3: P7 | J3: P8 | K3: P9 | L3: P10 | M3: P11 | N3: P12 | O3: P13 | P3: P14 | Q3: P15 | R3: P16 | S3: P17 | T3: P18 | U3: P19 | V3: P20 | W3: P21 | X3: P22 | Y3: P23 | Z3: P24 | AA3: P25 | AB3: P26 | AC3: P27 | AD3: P28 | AE3: SUMA
B4: E1 | C4: 1 | D4: 3 | E4: 1 | F4: 2 | G4: 3 | H4: 1 | I4: 1 | J4: 1 | K4: 1 | L4: 1 | M4: 2 | N4: 2 | O4: 1 | P4: 3 | Q4: 3 | R4: 3 | S4: 3 | T4: 1 | U4: 1 | V4: 2 | W4: 2 | X4: 2 | Y4: 3 | Z4: 3 | AA4: 3 | AB4: 1 | AC4: 1 | AD4: 2 | AE4: =SUM(C4:AD4) -> 53
B5: E2 | C5: 2 | D5: 1 | E5: 3 | F5: 1 | G5: 1 | H5: 1 | I5: 2 | J5: 2 | K5: 3 | L5: 2 | M5: 1 | N5: 2 | O5: 3 | P5: 1 | Q5: 1 | R5: 2 | S5: 3 | T5: 3 | U5: 1 | V5: 1 | W5: 1 | X5: 2 | Y5: 2 | Z5: 3 | AA5: 2 | AB5: 1 | AC5: 1 | AD5: 1 | AE5: =SUM(C5:AD5) -> 49
B6: E3 | C6: 1 | D6: 2 | E6: 3 | F6: 2 | G6: 1 | H6: 2 | I6: 3 | J6: 2 | K6: 1 | L6: 2 | M6: 3 | N6: 2 | O6: 1 | P6: 2 | Q6: 3 | R6: 2 | S6: 2 | T6: 3 | U6: 3 | V6: 2 | W6: 1 | X6: 3 | Y6: 2 | Z6: 3 | AA6: 2 | AB6: 2 | AC6: 2 | AD6: 3 | AE6: 60
B7: E4 | C7: 2 | D7: 1 | E7: 2 | F7: 3 | G7: 2 | H7: 1 | I7: 2 | J7: 3 | K7: 2 | L7: 1 | M7: 2 | N7: 3 | O7: 2 | P7: 3 | Q7: 2 | R7: 3 | S7: 1 | T7: 2 | U7: 2 | V7: 3 | W7: 2 | X7: 2 | Y7: 3 | Z7: 2 | AA7: 3 | AB7: 2 | AC7: 2 | AD7: 2 | AE7: 60 | AG7: Datos:
B8: E5 | C8: 1 | D8: 2 | E8: 1 | F8: 2 | G8: 1 | H8: 2 | I8: 1 | J8: 2 | K8: 1 | L8: 2 | M8: 1 | N8: 2 | O8: 1 | P8: 2 | Q8: 1 | R8: 2 | S8: 2 | T8: 1 | U8: 1 | V8: 2 | W8: 1 | X8: 1 | Y8: 2 | Z8: 1 | AA8: 2 | AB8: 1 | AC8: 1 | AD8: 1 | AE8: 40 | AG8: k | AH8: El número de items
B9: E6 | C9: 2 | D9: 1 | E9: 2 | F9: 2 | G9: 2 | H9: 1 | I9: 2 | J9: 2 | K9: 2 | L9: 1 | M9: 2 | N9: 2 | O9: 2 | P9: 2 | Q9: 2 | R9: 2 | S9: 1 | T9: 2 | U9: 2 | V9: 2 | W9: 2 | X9: 2 | Y9: 2 | Z9: 2 | AA9: 2 | AB9: 1 | AC9: 1 | AD9: 1 | AE9: 49 | AH9: Sumatoria de varianza de items
B10: E7 | C10: 3 | D10: 2 | E10: 3 | F10: 2 | G10: 3 | H10: 2 | I10: 3 | J10: 2 | K10: 3 | L10: 2 | M10: 3 | N10: 2 | O10: 3 | P10: 2 | Q10: 3 | R10: 2 | S10: 2 | T10: 3 | U10: 3 | V10: 2 | W10: 3 | X10: 3 | Y10: 2 | Z10: 3 | AA10: 2 | AB10: 2 | AC10: 3 | AD10: 2 | AE10: 70 | AH10: Varianza de la suma de items
B11: E8 | C11: 1 | D11: 3 | E11: 2 | F11: 1 | G11: 1 | H11: 3 | I11: 2 | J11: 1 | K11: 1 | L11: 3 | M11: 2 | N11: 1 | O11: 1 | P11: 1 | Q11: 2 | R11: 1 | S11: 3 | T11: 2 | U11: 2 | V11: 1 | W11: 1 | X11: 2 | Y11: 1 | Z11: 2 | AA11: 1 | AB11: 2 | AC11: 1 | AD11: 1 | AE11: 45 | AG11: ꭤ | AH11: Coeficiente de alfa de cronbach
B12: E9 | C12: 2 | D12: 1 | E12: 1 | F12: 1 | G12: 2 | H12: 1 | I12: 1 | J12: 1 | K12: 2 | L12: 1 | M12: 1 | N12: 1 | O12: 2 | P12: 1 | Q12: 1 | R12: 1 | S12: 1 | T12: 1 | U12: 1 | V12: 1 | W12: 2 | X12: 1 | Y12: 1 | Z12: 1 | AA12: 1 | AB12: 1 | AC12: 1 | AD12: 2 | AE12: 34
B13: E10 | C13: 3 | D13: 2 | E13: 1 | F13: 2 | G13: 3 | H13: 2 | I13: 1 | J13: 2 | K13: 3 | L13: 2 | M13: 1 | N13: 2 | O13: 3 | P13: 2 | Q13: 1 | R13: 2 | S13: 2 | T13: 1 | U13: 1 | V13: 2 | W13: 3 | X13: 1 | Y13: 2 | Z13: 1 | AA13: 2 | AB13: 1 | AC13: 2 | AD13: 1 | AE13: 51
B14: VARIANZA | C14: =VAR(C4:C13) -> 0.6222222222 | D14: =VAR(D4:D13) -> 0.6222222222 | E14: 0.7666666667 | F14: 0.4 | G14: 0.7666666667 | H14: 0.4888888889 | I14: 0.6222222222 | J14: 0.4 | K14: 0.7666666667 | L14: 0.4555555556 | M14: 0.6222222222 | N14: 0.3222222222 | O14: 0.7666666667 | P14: 0.5444444444 | Q14: 0.7666666667 | R14: 0.4444444444 | S14: 0.6666666667 | T14: 0.7666666667 | U14: 0.6777777778 | V14: 0.4 | W14: 0.6222222222 | X14: 0.5444444444 | Y14: 0.4444444444 | Z14: 0.7666666667 | AA14: 0.4444444444 | AB14: 0.2666666667 | AC14: 0.5 | AD14: 0.4888888889
AG15: Rangos | AH15: Magnitudes
AG16: 0.81 a 1.00 | AH16: Muy alta
AG17: 0.61 a 0.80 | AH17: Alta
AG18: 0.41 a 0.60 | AH18: Moderada
AG19: 0.21 a 0.40 | AH19: Baja
AG20: 0.01 a 0.20 | AH20: Muy baja

Sheet LISTA_ACT_ECON (hidden)
B2: 1010 | C2: Elaboración y conservación de carne | H2: Industria de alimentos
B3: 1030 | C3: Elaboración y conservación de frutas, legumbres y hortalizas | H3: Industria de bebidas
B4: 1040 | C4: Elaboración de aceites y grasas de origen vegetal y animal | H4: Industria textil
B5: 1050 | C5: Elaboración de productos lácteos | H5: Industria de cuero y productos
B6: 1061 | C6: Elaboración de productos de molinería | H6: Producción de madera y fabricación de productos de madera y corcho, excepto muebles; fabricación de artículos de paja y de materiales trenzables
B7: 1062 | C7: Elaboración de almidones y productos derivados de almidón | H7: Fabricación de papel y de productos de papel; impresión y reproducción de grabaciones
B8: 1071 | C8: Elaboración de productos de panadería | H8: Fabricación de sustancias y producción químicos; fabricación de productos farmacéuticas, sustancias químicas medicinales y productos botánicos de uso farmacéuticos
B9: 1072 | C9: Elaboración de azúcar | H9: Industria de productos de caucho y de plástico
B10: 1073 | C10: Elaboración de cacao y chocolate y de productos de confitería | H10: Fabricación de otros productos minerales no metálicos
B11: 1074 | C11: Elaboración de macarrones, fideos, alcuzcuz y productos farináceos similares | H11: Fabricación de metales comunes; fabricación de productos elaborados de metal, excepto maquinaria y equipo
B12: 1075 | C12: Elaboración de comidas y platos preparados | H12: Industria de productos de informática y equipos eléctricos
B13: 1079 | C13: Elaboración de otros productos alimenticios n.c.p. | H13: Fabricación de maquinaria y equipos n.c.p., vehículos automotores, remolques y semirremolques, otros equipos de transporte
B14: 1080 | C14: Elaboración de piensos preparados para animales | H14: Fabricación de muebles, reparación e instalación de maquinaria y/o equipos y otras industriasmanufactureras
B15: 1101 | C15: Destilación, rectificación y mezcla de bebidas alcohólicas
B16: 1102 | C16: Elaboración de vinos
B17: 1103 | C17: Elaboración de bebidas malteadas y de malta
B18: 1104 | C18: Elaboración de bebidas no alcohólicas; producción de aguas minerales y otras aguas embotelladas
B19: 1311 | C19: Preparación e hilatura de fibras textiles
B20: 1312 | C20: Tejeduría de productos textiles
B21: 1313 | C21: Acabado de productos textiles
B22: 1391 | C22: Fabricación de tejidos de punto y ganchillo
B23: 1392 | C23: Fabricación de artículos confeccionados de materiales textiles, excepto prendas de vestir
B24: 1393 | C24: Fabricación de tapices y alfombras
B25: 1394 | C25: Fabricación de cuerdas, cordeles, bramantes y redes
B26: 1399 | C26: Fabricación de otros productos textiles n.c.p.
B27: 1410 | C27: Fabricación de prendas de vestir, excepto prendas de piel
B28: 1420 | C28: Fabricación de artículos de piel
B29: 1430 | C29: Fabricación de artículos de punto y ganchillo
B30: 1511 | C30: Curtido y adobo de cueros; adobo y teñido de pieles
B31: 1512 | C31: Fabricación de maletas, bolsos de mano y artículos similares, y de artículos de talabartería y guarnicionería
B32: 1520 | C32: Fabricación de calzado
B33: 1610 | C33: Aserrado y acepilladura de madera
B34: 1621 | C34: Fabricación de hojas de madera para enchapado y tableros a base de madera
B35: 1622 | C35: Fabricación de partes y piezas de carpintería para edificios y construcciones
B36: 1623 | C36: Fabricación de recipientes de madera
B37: 1629 | C37: Fabricación de otros productos de madera; fabricación de artículos de corcho, paja y materiales trenzables
B38: 1701 | C38: Fabricación de pasta de madera, papel y cartón
B39: 1702 | C39: Fabricación de papel y cartón ondulado y de envases de papel y cartón
B40: 1709 | C40: Fabricación de otros artículos de papel y cartón
B41: 1811 | C41: Impresión
B42: 1812 | C42: Actividades de servicios relacionados con la impresión
B43: 1820 | C43: Reproducción de grabaciones
B44: 2011 | C44: Fabricación de sustancias químicas básicas
B45: 2012 | C45: Fabricación de abonos y compuestos de nitrógeno
B46: 2013 | C46: Fabricación de plásticos y caucho sintético en formas primarias
B47: 2021 | C47: Fabricación de plaguicidas y otros productos químicos de uso agropecuario
B48: 2022 | C48: Fabricación de pinturas, barnices y productos de revestimiento similares, tintas de imprenta y masillas
B49: 2023 | C49: Fabricación de jabones y detergentes, preparados para limpiar y pulir, perfumes y preparados de tocador
B50: 2029 | C50: Fabricación de otros productos químicos n.c.p.
B51: 2030 | C51: Fabricación de fibras artificiales
B52: 2100 | C52: Fabricación de productos farmacéuticos, sustancias químicas medicinales y productos botánicos de uso farmacéutico
B53: 2211 | C53: Fabricación de cubiertas y cámaras de caucho; recauchutado y renovación de cubiertas de caucho
B54: 2219 | C54: Fabricación de otros productos de caucho
B55: 2220 | C55: Fabricación de productos de plástico
B56: 2310 | C56: Fabricación de vidrio y productos de vidrio
B57: 2391 | C57: Fabricación de productos refractarios
B58: 2392 | C58: Fabricación de materiales de construcción de arcilla
B59: 2393 | C59: Fabricación de otros productos de porcelana y de cerámica
B60: 2394 | C60: Fabricación de cemento, cal y yeso
B61: 2395 | C61: Fabricación de artículos de hormigón y yeso
B62: 2396 | C62: Corte, talla y acabado de la piedra
B63: 2399 | C63: Fabricación de otros productos minerales no metálicos n.c.p.
B64: 2410 | C64: Industrias básicas de hierro y acero
B65: 2420 | C65: Fabricación de productos primarios de metales preciosos y otros metales no ferrosos
B66: 2431 | C66: Fundición de hierro y acero
B67: 2432 | C67: Fundición de metales no ferrosos
B68: 2511 | C68: Fabricación de productos metálicos para uso estructural
B69: 2512 | C69: Fabricación de tanques, depósitos y recipientes de metal
B70: 2513 | C70: Fabricación de generadores de vapor, excepto calderas de agua caliente para calefacción central
B71: 2520 | C71: Fabricación de armas y municiones
B72: 2591 | C72: Forja, prensado, estampado y laminado de metales; pulvimetalurgia
B73: 2592 | C73: Tratamiento y revestimiento de metales; maquinado
B74: 2593 | C74: Fabricación de artículos de cuchillería, herramientas de mano y artículos de ferretería
B75: 2599 | C75: Fabricación de otros productos elaborados de metal n.c.p.
B76: 2610 | C76: Fabricación de componentes y tableros electrónicos
B77: 2620 | C77: Fabricación de ordenadores y equipo periférico
B78: 2630 | C78: Fabricación de equipo de comunicaciones
B79: 2640 | C79: Fabricación de aparatos electrónicos de consumo
B80: 2651 | C80: Fabricación de equipo de medición, prueba, navegación y control
B81: 2652 | C81: Fabricación de relojes
B82: 2660 | C82: Fabricación de equipo de irradiación y equipo electrónico de uso médico y terapéutico
B83: 2670 | C83: Fabricación de instrumentos ópticos y equipo fotográfico
B84: 2680 | C84: Fabricación de soportes magnéticos y ópticos
B85: 2710 | C85: Fabricación de motores, generadores y transformadores eléctricos y aparatos de distribución y control de la energía eléctrica
B86: 2720 | C86: Fabricación de pilas, baterías y acumuladores
B87: 2731 | C87: Fabricación de cables de fibra óptica
B88: 2732 | C88: Fabricación de otros hilos y cables eléctricos
B89: 2733 | C89: Fabricación de dispositivos de cableado
B90: 2740 | C90: Fabricación de equipo eléctrico de iluminación
B91: 2750 | C91: Fabricación de aparatos de uso doméstico
B92: 2790 | C92: Fabricación de otros tipos de equipo eléctrico
B93: 2811 | C93: Fabricación de motores y turbinas, excepto motores para aeronaves, vehículos automotores y motocicletas
B94: 2812 | C94: Fabricación de equipo de propulsión de fluidos
B95: 2813 | C95: Fabricación de otras bombas, compresores, grifos y válvulas
B96: 2814 | C96: Fabricación de cojinetes, engranajes, trenes de engranajes y piezas de transmisión
B97: 2815 | C97: Fabricación de hornos, hogares y quemadores
B98: 2816 | C98: Fabricación de equipo de elevación y manipulación
B99: 2817 | C99: Fabricación de maquinaria y de equipo de oficina (excepto ordenadores y equipo periférico)
B100: 2818 | C100: Fabricación de herramientas de mano motorizadas
B101: 2819 | C101: Fabricación de otros tipos de maquinaria de uso general
B102: 2821 | C102: Fabricación de maquinaria agropecuaria y forestal
B103: 2822 | C103: Fabricación de maquinaria para la conformación de metales y de máquinas herramienta
B104: 2823 | C104: Fabricación de maquinaria metalúrgica
B105: 2824 | C105: Fabricación de maquinaria para la explotación de minas y canteras y para obras de construcción
B106: 2825 | C106: Fabricación de maquinaria para la elaboración de alimentos, bebidas y tabaco
B107: 2826 | C107: Fabricación de maquinaria para la elaboración de productos textiles, prendas de vestir y cueros
B108: 2829 | C108: Fabricación de otros tipos de maquinaria de uso especial
B109: 2910 | C109: Fabricación de vehículos automotores
B110: 2920 | C110: Fabricación de carrocerías para vehículos automotores; fabricación de remolques y semirremolques
B111: 2930 | C111: Fabricación de partes, piezas y accesorios para vehículos automotores
B112: 3011 | C112: Construcción de buques y estructuras flotantes
B113: 3012 | C113: Construcción de embarcaciones de recreo y deporte
B114: 3020 | C114: Fabricación de locomotoras y material rodante
B115: 3030 | C115: Fabricación de aeronaves, naves espaciales y maquinaría conexa
B116: 3040 | C116: Fabricación de vehículos militares de combate
B117: 3091 | C117: Fabricación de motocicletas
B118: 3092 | C118: Fabricación de bicicletas y de sillones de ruedas ara inválidos
B119: 3099 | C119: Fabricación de otros tipos de equipo de transporte n.c.p.
B120: 3100 | C120: Fabricación de muebles
B121: 3211 | C121: Fabricación de joyas y artículos conexos
B122: 3212 | C122: Fabricación de bisutería y artículos conexos
B123: 3220 | C123: Fabricación de instrumentos de música
B124: 3230 | C124: Fabricación de artículos de deporte
B125: 3240 | C125: Fabricación de juegos y juguetes
B126: 3250 | C126: Fabricación de instrumentos y materiales médicos y odontológicos
B127: 3290 | C127: Otras industrias manufactureras n.c.p.
